Cogmind - Beta 16 @@@ ROGUE MODE // 2025.10.30 @ 09:04:52 Player: Savant Result: Establishing 0b11! Performance ------------- Evolutions (9) 4500 Regions Visited (37) 7400 Robots Destroyed (718) 3590 Value Destroyed (43537) 43537 Prototype IDs (371) 7420 Alien Tech Used (8) 1600 Bonus (72237) 72237 TOTAL SCORE: 140284 Bonus ------- High Alert Combat Kills 9958 Follower Combat Kills 3193 Destroyed Unchained 1000 Entered Garrisons 1200 Network Hubs Disabled 600 Acquired ECA 300 Met Warlord at Base 500 MAIN.C Attacked Warlord 500 Warlord Defense Kills 622 Built Enhanced Grunts 300 Met R17 at Cetus 500 Found Hidden Lab 3000 Met R17 at Research 2000 Met Warlord at Research 2000 Invited to Help at Command 2000 Scanned by Researcher 500 Destroyed MAIN.C Guards 500 Met MAIN.C 5000 Destroyed MAIN.C Shell 5000 Destroyed MAIN.C 10000 Met Warlord at Command 2000 Met Architect 300 Destroyed A8 300 Destroyed A6 400 Destroyed A5 500 Destroyed A4 700 Destroyed A3 800 Destroyed A2 1000 Destroyed Architect 15000 Win 3000 Friendly Fire -436 Cogmind --------- Core Integrity 965/1600 Matter 290/300 Energy 1390/1400 System Corruption 2% Temperature Cool (18) Movement Hovering (34) Location 0b11 Command Parts ------- > --- POWER (3) -------- Experimental Antimatter Reactor Experimental Antimatter Reactor > --- PROPULSION (8) --- Combat Antigrav System Cooled Linear Gravjet Combat Linear Gravjet Gravjet Array Gravjet Array Concept Combat Aerolev Unit > --- UTILITY (12) ----- Concept Antigrav Storage Unit Spectral Analyzer Experimental Melee Analysis Suite Concept Weapon Articulator Concept Core Analysis Suite Femtoactuators Experimental Reaction Control System Concept Cloak Mesh Medium Regenerative Plating Graphene Brace Advanced Force Field Concept Impact Drone Bay (0/6) > --- WEAPON (3) ------- Sigix Broadsword Vortex Lance > --- INVENTORY (25) --- Graviton Reactor Vortex Chain Reactor Combat Linear Gravjet Gravjet Array Concept Combat Aerolev Unit Desublimator Concept Phasing Heat Sink Concept Thermoelectric Network Concept Chromion Battery (800) Concept Chromion Battery (800) Concept NT7 Matterbank (750) Experimental Powered Armor Concept Beam Splitter High-powered Transdimensional Reconstructor Core Expander Warp Cannon A3's Sniper Rifle Perforator Nanosword Nanosword Sigix Broadsword Peak State ------------ > --- POWER ------------ Graviton Reactor Experimental Antimatter Reactor Experimental Antimatter Reactor > --- PROPULSION ------- Combat Antigrav System Cooled Linear Gravjet Gravjet Array Concept Combat Aerolev Unit CL-0N3's Metamass Displacer > --- UTILITY ---------- Concept Antigrav Storage Unit Spectral Analyzer Experimental Melee Analysis Suite Concept Core Analysis Suite Femtoactuators Experimental Reaction Control System Concept Cloak Mesh Concept Cloak Mesh Medium Regenerative Plating Advanced Force Field Deep Network Scanner Concept Impact Drone Bay > --- WEAPON ----------- Nanosword Sigix Broadsword > --- INVENTORY -------- Experimental Antimatter Reactor Gravjet Array Gravjet Array Concept Combat Aerolev Unit Concept Phasing Heat Sink Concept Thermoelectric Network Concept Chromion Battery Concept Chromion Battery Concept NT7 Matterbank Concept Weapon Articulator Femtoactuators Advanced Reaction Control System Experimental Powered Armor Graphene Brace Concept Beam Splitter Transdimensional Reconstructor High-powered Transdimensional Reconstructor Warp Cannon Perforator Vortex Lance Vortex Lance [Rating: 305] Favorites ----------- Power Cooled Fission Core Engine Improved Ion Engine Power Core Cooled Fission Core Reactor Reinforced Quantum Reactor Propulsion Improved Heavy Treads Treads Improved Heavy Treads Leg Flexi-carbon Leg Wheel Centrium Wheel Hover Unit Combat Antigrav System Utility Huge Storage Unit Device Advanced Cooling System Storage Huge Storage Unit Processor Enhanced Optical Array Hackware Hacking Suite Protection Medium Regenerative Plating Weapon Heavy Linear Accelerator Energy Gun Improved EM Shotgun Energy Cannon Long-range Phase Cannon Ballistic Gun Hypervelocity Gauss Rifle Ballistic Cannon Heavy Linear Accelerator Launcher Improved Proton Missile Launcher Special Weapon Guided Remote Datajack Impact Weapon Power Maul Slashing Weapon Sigix Broadsword Piercing Weapon Vortex Lance Build | -11 -10 -9 -9 -9 -8 -8 -8 -8 -8 -8 -7 -7 -6 -6 -6 -6 -6 -6 -6 -6 -5 -5 -5 -5 -4 -4 -4 -4 -4 -3 -3 -2 -2 -2 -1 -1 -1 ------- Run | Yrd Mat Mat Min Exi Min Mat Gar Mat Gar Mat Fac Gar Fac Gar Fac Ext Cet Arc Hub Gar Fac Upp Upp War Pro Fac Gar Arm Lab Res Tes Res Qua Frg Acc Com Ac0 Slots Evolved 18 | . . 2 . . . 2 . . . . 2 . 2 . . . . . . . 2 . . . . 2 . . . 2 . 2 . . 2 . . Power 2 | . . . . . . . . . . . . . . . . . . . . . 1 . . . . . . . . . . 1 . . . . . Propulsion 6 | . . 1 . . . 1 . . . . . . . . . . . . . . . . . . . 2 . . . 1 . 1 . . . . . Utility 9 | . . 1 . . . 1 . . . . 1 . 2 . . . . . . . 1 . . . . . . . . 1 . . . . 2 . . Weapon 1 | . . . . . . . . . . . 1 . . . . . . . . . . . . . . . . . . . . . . . . . . Parts Attached 417 | 8 10 20 3 1 3 14 18 18 5 4 7 15 7 7 6 5 9 5 4 11 39 11 6 7 3 46 8 7 10 20 15 14 3 19 2 16 11 Power 53 | 1 1 1 . . 1 . 2 2 1 1 . 2 . . . . 3 . . 2 5 3 1 . 1 5 3 1 1 4 2 2 2 3 . 2 1 Engine 10 | 1 1 1 . . 1 . 2 1 . 1 . 1 . . . . . . . 1 . . . . . . . . . . . . . . . . . Core 10 | . . . . . . . . 1 1 . . . . . . . 1 . . . 1 3 1 . . 1 . . 1 . . . . . . . . Reactor 33 | . . . . . . . . . . . . 1 . . . . 2 . . 1 4 . . . 1 4 3 1 . 4 2 2 2 3 . 2 1 Propulsion 92 | 2 2 5 . . . 6 6 7 1 1 5 3 1 2 . 1 2 1 . . 9 . 1 1 1 13 3 . 3 1 . 6 . 4 . 3 2 Treads 57 | 2 2 5 . . . 6 6 7 1 1 5 3 1 2 . 1 1 1 . . 4 . . . . 5 3 . . . . 1 . . . . . Leg 14 | . . . . . . . . . . . . . . . . . 1 . . . 3 . 1 1 1 7 . . . . . . . . . . . Wheel 5 | . . . . . . . . . . . . . . . . . . . . . 1 . . . . 1 . . 3 . . . . . . . . Hover 16 | . . . . . . . . . . . . . . . . . . . . . 1 . . . . . . . . 1 . 5 . 4 . 3 2 Flight . | . . . . . . . . . . . . . . . . . . . . . . . . . . . . . . . . . . . . . . Utility 166 | 2 2 7 2 1 1 6 4 5 3 1 1 6 5 2 6 4 3 2 4 1 14 7 2 1 . 17 . 5 2 10 8 5 . 11 2 10 4 Device 92 | 1 . 3 2 . 1 1 2 1 1 1 . 3 2 1 1 3 1 2 2 1 8 6 2 . . 12 . 3 1 5 4 3 . 6 1 9 3 Storage 15 | 1 1 1 . 1 . . . . . . . . 1 . 1 . . . . . . 1 . 1 . . . 1 . 1 1 1 . 3 . . . Processor 18 | . . . . . . . . . . . . 2 1 . 2 . . . . . 1 . . . . 3 . 1 . 2 3 . . 2 1 . . Hackware 13 | . . . . . . 2 . 1 . . . 1 . . 1 . . . 2 . 3 . . . . 1 . . . 2 . . . . . . . Protection 28 | . 1 3 . . . 3 2 3 2 . 1 . 1 1 1 1 2 . . . 2 . . . . 1 . . 1 . . 1 . . . 1 1 Artifact . | . . . . . . . . . . . . . . . . . . . . . . . . . . . . . . . . . . . . . . Weapon 106 | 3 5 7 1 . 1 2 6 4 . 1 1 4 1 3 . . 1 2 . 8 11 1 2 5 1 11 2 1 4 5 5 1 1 1 . 1 4 Energy Gun 25 | . 2 3 . . 1 . 1 . . . . 1 . 1 . . . 2 . 3 3 . . 2 . 3 . 1 1 . 1 . . . . . . Energy Cannon 23 | . . 2 . . . 1 . 2 . . . 1 1 . . . . . . . 2 . . 1 1 5 1 . 1 2 1 . . 1 . . 1 Ballistic Gun 18 | 3 2 . . . . . 1 . . 1 1 . . . . . . . . 4 2 1 . . . 2 . . . . . . . . . . 1 Ballistic Cannon 14 | . . . . . . 1 1 1 . . . 2 . 2 . . 1 . . . 1 . . . . . 1 . . 2 1 1 . . . . . Launcher 9 | . . 1 . . . . 2 . . . . . . . . . . . . 1 3 . . . . . . . . . 1 . . . . 1 . Special Weapon 6 | . 1 . 1 . . . . . . . . . . . . . . . . . . . 1 1 . 1 . . 1 . . . . . . . . Impact Weapon 2 | . . . . . . . 1 1 . . . . . . . . . . . . . . . . . . . . . . . . . . . . . Slashing Weapon 5 | . . 1 . . . . . . . . . . . . . . . . . . . . . . . . . . . . 1 . 1 . . . 2 Piercing Weapon 4 | . . . . . . . . . . . . . . . . . . . . . . . 1 1 . . . . 1 1 . . . . . . . Special Melee Weapon . | . . . . . . . . . . . . . . . . . . . . . . . . . . . . . . . . . . . . . . Unidentified Prototypes 41 | . . 1 . . . . . . . . . 1 . . . . 5 1 . 1 3 . . 3 . 1 . . 2 4 6 1 2 5 . 2 3 Corrupted Parts 4 | . . . . . . . . . . . . . . . . . . 1 . . . . . 1 . 1 . . . . . . . . . 1 . System Corruption 23 | . . . . . . . . . . . . . . . . . . 7 . . . . . 7 . 8 . . . . . . . . . 1 . Parts Lost 84 | . . 2 . . 3 4 8 1 5 . . . . 2 . 2 . . . 5 22 2 . . 3 8 2 5 . 2 . . . . . 3 5 Power 11 | . . . . . 1 . 1 1 1 . . . . . . . . . . 1 1 1 . . 1 1 . 1 . 1 . . . . . . . Propulsion 17 | . . . . . . 1 2 . 2 . . . . . . 1 . . . 2 5 . . . 1 2 . . . . . . . . . . 1 Utility 29 | . . . . . 1 2 3 . 1 . . . . 1 . 1 . . . . 8 . . . . 2 . 2 . 1 . . . . . 3 4 Weapon 27 | . . 2 . . 1 1 2 . 1 . . . . 1 . . . . . 2 8 1 . . 1 3 2 2 . . . . . . . . . Highest Loss Streak 9 | . . 1 . . 3 2 3 1 3 . . . . 1 . 1 . . . 3 9 2 . . 2 3 2 2 . 1 . . . . . 2 1 To Critical Strikes . | . . . . . . . . . . . . . . . . . . . . . . . . . . . . . . . . . . . . . . Average Backups 19 | 3 8 14 15 15 16 19 19 19 18 19 18 15 13 17 18 17 18 19 19 20 22 21 22 23 22 22 22 21 17 21 20 18 17 19 20 21 21 Power . | . . . 1 1 . 1 1 . . 1 1 . . . . 1 1 2 2 1 . 2 1 . 1 . . . . . . . . . 1 1 2 Propulsion 3 | 2 2 2 2 2 2 2 4 1 1 2 3 3 2 3 4 3 3 4 4 2 1 3 4 3 2 3 4 5 3 3 5 . 1 1 3 3 4 Utility 10 | . 1 4 5 5 7 9 7 11 11 10 9 7 7 8 10 9 10 11 11 12 13 13 13 13 13 12 11 11 6 10 8 9 7 8 10 11 9 Weapon 4 | . 4 6 6 7 5 5 5 5 5 5 4 3 3 4 3 3 2 2 2 4 5 1 2 4 5 5 4 4 4 4 5 6 6 6 4 3 4 Tool/Special . | . . . . . . . . . . . . . . . . . . . . . . . . . . . . . . . . . . . . . . Unused Backups 89 | . 7 9 . . 1 2 . . 1 . 4 6 . . 2 . 2 . 2 3 3 1 3 5 . 3 2 5 1 3 6 2 3 7 . 1 5 Power 7 | . . . . . . . . . . . . 1 . . . . 1 . . 1 . . 1 . . . 1 . . . 1 . . . . 1 . Propulsion 22 | . 4 1 . . . . . . . . 1 4 . . . . . . . . . . 1 . . . 1 3 1 1 2 1 . 1 . . 1 Utility 36 | . . 1 . . 1 2 . . . . 2 1 . . 2 . 1 . 2 1 1 1 1 4 . 2 . 2 . 1 1 . 2 6 . . 2 Weapon 21 | . 3 7 . . . . . . 1 . . . . . . . . . . 1 2 . . 1 . 1 . . . . 2 1 1 . . . 1 Tool/Special 3 | . . . . . . . . . . . 1 . . . . . . . . . . . . . . . . . . 1 . . . . . . 1 Average Slot Usage (%) 89 | . 100 99 100 99 99 99 99 99 97 100 99 78 79 79 80 79 79 77 80 84 84 98 99 93 86 90 88 83 74 88 89 85 86 83 83 83 80 Engine 2 | . 14 11 11 11 11 9 8 8 . . 7 6 . . . . . . . . . . . . . . . . . . . . . . . . . Core 1 | . . . . . . . . . 8 8 . . . . . . . . . . . 10 11 11 3 3 4 . . 3 . . . . . . . Reactor 4 | . . . . . . . . . . . . . 6 6 6 6 6 6 6 6 9 . . . 3 4 5 9 9 5 9 10 12 12 11 9 7 Treads 16 | . 28 32 33 33 33 35 36 36 35 36 30 16 13 13 13 12 12 12 13 13 10 5 2 15 13 9 20 15 5 8 8 . . . . . . Leg 2 | . . . . . . . . . . . . . . . . . . . . . . 17 20 2 2 14 . . . . . . . . . . . Hover 2 | . . . . . . . . . . . . . . . . . . . . . . . . . . . . . . . . 19 20 20 19 19 20 Device 15 | . 11 10 11 21 10 12 6 6 7 9 15 13 19 20 8 11 12 15 14 13 15 17 22 23 23 14 15 19 23 19 17 16 15 16 23 24 24 Storage 6 | . 14 11 11 11 11 9 9 9 9 9 7 7 6 6 6 6 6 6 6 6 5 5 5 5 5 5 5 5 5 4 4 4 4 4 3 3 3 Processor 6 | . . . . . . . . . . . . . 6 6 6 6 6 6 6 6 5 11 11 11 11 10 10 10 10 9 13 12 12 11 9 11 11 Hackware 4 | . . . . . . 3 9 13 9 9 7 7 6 6 12 7 6 3 11 13 9 4 . . . 4 5 1 . 4 4 4 4 4 3 1 . Protection 6 | . 2 11 10 . 11 10 11 7 8 8 7 7 6 5 10 12 13 10 6 6 5 5 5 5 4 6 5 4 1 4 4 3 4 4 3 3 4 Energy Gun 2 | . 1 14 21 . 21 4 . . . . . . . . . . . 6 . 4 5 5 3 4 1 1 . 1 . . . . . . . . . Energy Cannon 3 | . . 6 . . . 5 9 5 2 . 5 . . . . . . . . . 2 . . . 9 11 13 8 . 7 8 6 6 3 . . . Ballistic Gun 3 | . 25 . . . . . . 8 1 2 7 7 5 . . . . . . 4 5 8 10 4 2 1 . . . . . . . . . . . Ballistic Cannon 3 | . . . . . . 6 5 . 8 7 6 5 6 11 13 12 13 5 12 7 1 . . . . . . 4 . 3 3 4 4 1 . . . Peak Build Rating 305 | 7 12 21 20 19 21 29 35 35 38 40 51 86 98 103 100 100 106 107 107 110 127 112 109 129 133 155 160 161 164 198 205 232 242 283 303 305 300 Average Rating 113 | 5 9 18 19 17 20 25 32 32 37 37 45 69 97 100 96 97 102 96 104 103 112 102 107 119 126 145 146 156 122 180 196 223 231 254 300 295 281 On Entrance 108 | . 7 12 20 18 19 20 29 32 33 38 33 51 86 98 100 95 97 104 107 107 105 112 103 103 126 129 148 160 140 164 193 198 230 239 282 297 284 Avg Prop Armor Cover (%) 9 | . . . . . . . . . . . . . . . . . . . . . 12 6 6 . 3 5 5 . 17 15 17 . . 1 . . . Naked Turns . | . . . . . . . . . . . . . . . . . . . . . . . . . . . . . . . . . . . . . . Heaviest Build 174 | 14 24 43 40 59 61 64 63 65 77 66 70 105 153 148 147 149 149 154 140 138 151 168 168 153 165 169 168 169 146 164 174 133 124 129 130 138 145 Greatest Support 230 | 40 46 69 63 63 63 90 92 93 95 95 102 150 150 150 150 150 150 150 150 155 155 84 100 151 151 207 225 230 64 166 48 137 134 144 144 144 138 Greatest Overweight (x) 11 | . . . . . . . . . . . . . 1 . . . . 1 . . 11 2 2 1 1 1 . 1 4 3 3 1 . . . . 1 Average Overweight (x) . | . . . . . . . . . . . . . . . . . . . . . 1 1 1 . . . . . 1 1 3 . . . . . . Largest Inventory Capacity 25 | 8 10 15 15 20 20 20 20 20 20 20 20 20 25 25 25 25 25 25 25 25 25 25 25 25 25 25 25 25 25 25 25 25 20 25 25 25 25 Average Capacity 22 | 6 9 14 15 17 20 20 20 20 20 20 20 20 22 25 25 25 25 25 25 25 25 25 25 25 25 25 25 25 25 25 25 20 20 22 25 25 25 Most Carried 25 | 7 10 15 15 16 17 20 20 20 20 20 20 20 21 25 25 25 25 25 25 25 25 25 25 25 25 25 25 25 25 25 25 24 20 25 24 25 25 Average Carried 21 | 4 8 14 14 15 16 19 19 19 18 19 19 19 19 23 24 23 24 24 24 24 23 24 24 24 23 24 24 24 19 24 24 19 19 22 23 24 24 Final Capacity 25 | 8 10 15 15 20 20 20 20 20 20 20 20 20 25 25 25 25 25 25 25 25 25 25 25 25 25 25 25 25 25 25 25 20 20 25 25 25 25 Final Carried 25 | 7 10 15 15 16 17 20 20 20 20 20 20 20 21 24 24 23 24 25 25 25 24 24 25 25 25 25 25 25 25 24 25 20 20 25 24 25 25 Class Distribution -------------------- 21% | Scavenger-Tank 17% | Mutant 17% | Scavenger-Mutant 12% | Tank 7% | Hacker-Tank 5% | Scavenger-Skirmisher 5% | Scavenger-Gladiator 4% | Scavenger-Gunner Dominant Class ---------------- Mutant | -10/Materials Mutant | -9/Materials Scavenger-Mutant | -9/Mines Scavenger-Mutant | -9/Exiles Mutant | -8/Mines Scavenger-Mutant | -8/Materials Mutant | -8/Garrison Scavenger-Mutant | -8/Materials Mutant | -8/Garrison Scavenger-Mutant | -8/Materials Scavenger-Tank | -7/Factory Scavenger-Tank | -7/Garrison Tank | -6/Factory Tank | -6/Garrison Hacker-Tank | -6/Factory Tank | -6/Extension Scavenger-Tank | -6/Cetus Scavenger-Mutant | -6/Archives Scavenger-Tank | -6/Hub_04(d) Scavenger-Tank | -6/Garrison Scavenger-Tank | -5/Factory Scavenger-Skirmisher | -5/Upper Caves Scavenger-Skirmisher | -5/Upper Caves Scavenger-Tank | -5/Warlord Scavenger-Mutant | -4/Proximity Caves Scavenger-Tank | -4/Factory Tank | -4/Garrison Tank | -4/Armory Mutant | -4/Lab Hacker-Tank | -3/Research Hacker-Tank | -3/Testing Scavenger-Gunner | -2/Research Scavenger-Gunner | -2/Quarantine Hacker-Mutant | -2/Protoforge Scavenger-Gladiator | -1/Access Scavenger-Gladiator | -1/Command Scavenger-Gladiator | -1/Access_0 Resources | -11 -10 -9 -9 -9 -8 -8 -8 -8 -8 -8 -7 -7 -6 -6 -6 -6 -6 -6 -6 -6 -5 -5 -5 -5 -4 -4 -4 -4 -4 -3 -3 -2 -2 -2 -1 -1 -1 ----------- Run | Yrd Mat Mat Min Exi Min Mat Gar Mat Gar Mat Fac Gar Fac Gar Fac Ext Cet Arc Hub Gar Fac Upp Upp War Pro Fac Gar Arm Lab Res Tes Res Qua Frg Acc Com Ac0 Matter Collected 26666 | 173 478 743 194 82 135 587 771 834 748 99 181 1249 627 1816 1133 1653 462 269 532 1575 2184 474 229 908 255 1551 560 917 177 957 696 222 81 1753 60 290 1011 Remotely 6502 | . . . . . . . . . . . . 67 386 639 619 951 270 15 235 707 1617 . . 588 . . . 201 . 207 . . . . . . . Salvage Created 34057 | 10 700 1725 220 . 366 761 923 1540 613 17 193 1225 306 1031 555 806 101 287 277 865 2533 282 156 206 450 3530 2953 1494 . 332 1423 71 274 3702 565 1293 2272 Parts 1496 | 5 47 106 11 . 22 52 55 73 43 3 5 50 17 45 17 29 . 13 13 44 101 12 2 8 15 124 95 63 . 12 50 1 6 146 38 51 122 Haulers Intercepted 12 | . . 5 . . . 3 . 1 . . 1 . . . 2 . . . . . . . . . . . . . . . . . . . . . . Recyclers Shooed 13 | . 2 . . . . . . . . . . . . . 2 1 . . . . 4 . . . . 3 . . . . . . . . . 1 . Parts Field Recycled . | . . . . . . . . . . . . . . . . . . . . . . . . . . . . . . . . . . . . . . Retrieved Matter . | . . . . . . . . . . . . . . . . . . . . . . . . . . . . . . . . . . . . . . Parts Self-Destructed 27 | . . . . . . . . . . . . . . . . . . . . . . 3 . . 24 . . . . . . . . . . . . Prevented 9 | . . . . . . . . . . . . . . . . . . . . . . 9 . . . . . . . . . . . . . . . Parts Restored 6 | . . . . . . . . . . . . . . . . . . . . . . . . . . . . . . . . . . 6 . . . Faulty 6 | . . . . . . . . . . . . . . . . . . . . . . . . . . . . . . . . . . 6 . . . Kills | -11 -10 -9 -9 -9 -8 -8 -8 -8 -8 -8 -7 -7 -6 -6 -6 -6 -6 -6 -6 -6 -5 -5 -5 -5 -4 -4 -4 -4 -4 -3 -3 -2 -2 -2 -1 -1 -1 ------- Run | Yrd Mat Mat Min Exi Min Mat Gar Mat Gar Mat Fac Gar Fac Gar Fac Ext Cet Arc Hub Gar Fac Upp Upp War Pro Fac Gar Arm Lab Res Tes Res Qua Frg Acc Com Ac0 Combat Hostiles Destroyed 578 | . 15 29 6 . 6 17 31 30 18 . 1 23 7 29 5 19 2 1 9 25 54 4 . 5 12 48 37 26 . 5 15 . 3 49 7 14 26 Melee 44 | . . . . . . 2 . 4 . . . . . . . . . . . . . . . . . . . . . . . . . 4 7 14 13 Guns 92 | . 12 16 2 . 4 . . 9 1 . 1 2 1 . . . . . . 5 17 3 . 5 8 3 2 1 . . . . . . . . . Cannons 286 | . . 8 . . . 13 18 10 14 . . 15 1 24 5 15 2 1 7 15 10 . . . 4 36 13 22 . 5 12 . 1 25 . . 10 AOE 92 | . 3 5 3 . 2 2 13 6 3 . . 6 5 5 . 4 . . 2 4 23 1 . . . . 2 . . . . . . 3 . . . Classes Destroyed 29 | 1 6 3 . . 2 1 2 1 1 . . . 1 1 . 1 . . . 1 . . . 1 1 . . 1 . 1 2 . . 2 . . . Worker 20 | . 2 2 . . . 1 . 1 . 1 1 . . . 3 . . . . . 3 . . . . 2 . . . . 1 . . . . 3 . Builder 19 | . . 2 . . 1 2 . 2 . . . . . . 2 3 . . . . 1 . . . . 2 . . . . 4 . . . . . . Tunneler 3 | 1 . . 1 . 1 . . . . . . . . . . . . . . . . . . . . . . . . . . . . . . . . Hauler 12 | . . 5 . . . 3 . 1 . . 1 . . . 2 . . . . . . . . . . . . . . . . . . . . . . Recycler 18 | . 4 2 1 . . . . 1 . . 1 . 1 . 3 2 . . . . . . . . . 3 . . . . . . . . . . . Minesweeper 1 | . . . . . . . . . . . . . . . . . . . . . . . . . 1 . . . . . . . . . . . . Mechanic 5 | . . . . . . . . 2 . . 1 . . . . . . . . . . . . 1 . . . . . . 1 . . . . . . Operator 16 | . 1 1 . . . 1 . 1 . . . . . . . . . 7 . . . . . . . . . . . 1 2 . . . 1 1 . Drone 4 | . . . . . . . . . . . . . . . . . . . . . . . . . . . . . . . . . . 4 . . . Watcher 41 | . 2 5 . . . 3 1 3 . . . 1 2 . 2 2 2 . . . . . . . . 7 . 2 . . 1 2 . 5 1 . . Swarmer 101 | . 9 8 3 . . 7 7 5 3 . . 7 . 9 2 1 . . 2 4 4 . . 1 4 9 4 2 . . . . . 5 . 5 . Cutter 3 | . . . . . . . . . . . . . . 3 . . . . . . . . . . . . . . . . . . . . . . . Saboteur 3 | . . . . . . . . . . . . . 1 . . . . . . . 1 . . . . . . . . . . . . 1 . . . Grunt 196 | . 6 13 3 . 4 5 9 18 5 . . 8 4 7 . 9 . . 4 7 28 2 . 2 5 15 18 8 . . 8 . 2 6 . . . Brawler 18 | . . . . . 1 2 . 1 . . . . . 1 . 2 . . . . 1 1 . . 1 . 4 2 . 1 1 . . . . . . Duelist 16 | . . . . . 1 . 3 1 . . . 1 . 1 . 1 . . . . 3 . . . 1 . 3 . . . 1 . . . . . . Protector 2 | . . . . . . . . . . . . . . . . . . . . 1 . . . 1 . . . . . . . . . . . . . Sentry 68 | . . 8 . . . 2 6 5 4 . . 1 1 5 1 4 . 1 1 6 1 . . . 1 3 4 1 . . . . . 12 . 1 . Demolisher 5 | . . . . . . . 1 . . . . . . 1 . . . . . . . . . . . 1 . 2 . . . . . . . . . Specialist 3 | . . . . . . . . . 1 . . . . . . . . . . . . . . . . . . 2 . . . . . . . . . Hunter 34 | . . . . . . 1 2 . 2 . . 3 . 2 . . . . . 3 7 1 . . . 4 2 2 . . 2 . 1 . 2 . . Programmer 60 | . . . . . . . 3 . 3 . 1 3 1 . 2 . . . 2 3 9 . . . . 10 2 6 . . 2 . . 5 5 3 . Heavy 1 | . . . . . . . . . . . . . . . . . . . . . . . . . . . . 1 . . . . . . . . . Q-Series 1 | . . . . . . . . . . . . . . . . . . . . . . . . . . . . . . . 1 . . . . . . Behemoth 5 | . . . . . . . . . . . . . . . . 2 . . . 1 . . . . . 1 . . . . . . . . . 1 . Cetus Guard 3 | . . . . . . . . . . . . . . . . . 2 . . . . . . . . 1 . . . . . . . . . . . Quarantine Guard 1 | . . . . . . . . . . . . . . . . . . . . . . . . . . 1 . . . . . . . . . . . M Guard 1 | . . . . . . . . . . . . . . . . . . . . . . . . . . . . . . . . . . . . 1 . Enhanced Grunt 13 | . . . . . . . . . . . . . . . . . . . . . . . . . . . . . . . . . . . . . 13 Enhanced Sentry 2 | . . . . . . . . . . . . . . . . . . . . . . . . . . . . . . . . . . . . . 2 Enhanced Hunter 6 | . . . . . . . . . . . . . . . . . . . . . . . . . . . . . . . . . . . . . 6 CL-0N3 Special 1 | . . . . . . . . . . . . . . . . . . . . . . . . . . 1 . . . . . . . . . . . Hotshot 7 | . . . . . . . . . . . . . . . . . . . . . . . . . . . . . . . . . . 7 . . . Decapitator 4 | . . . . . . . . . . . . . . . . . . . . . . . . . . . . . . . . . . 4 . . . Immortal 4 | . . . . . . . . . . . . . . . . . . . . . . . . . . . . . . . . . . 4 . . . Combat Programmer 1 | . . . . . . . . . . . . . . . . . . . . . . . . . . . . . . . . . . . . 1 . Investigator 1 | . . . . . . . . . . . . . . . . . . . . . . . . . . . . . . . 1 . . . . . . Striker 3 | . . . . . . . . . . . . . . . . . . . . . . . . . . . . . . 3 . . . . . . . Executioner 4 | . . . . . . . . . . . . . . . . . . . . . . . . 1 . 2 . . . 1 . . . . . . . Alpha 7 2 | . . . . . . . . . . . . . . . . . . . . . . . . . . . . . . . . . . 2 . . . Decomposer 2 | . . . . . . . . . . . . . . . . . . . . . . . 2 . . . . . . . . . . . . . . Packrat 1 | . . . . . . . . . . . . . . . . . . . . . . . 1 . . . . . . . . . . . . . . Thug 1 | . . . . . . . . . . . . . . . . 1 . . . . . . . . . . . . . . . . . . . . . Savage 1 | . . . . . . . . . . . . . . . . . 1 . . . . . . . . . . . . . . . . . . . . Best Kill Streak 12 | 1 7 5 3 . 3 4 7 9 6 1 3 6 5 4 3 9 2 2 3 4 12 3 . 3 4 7 7 10 . 2 5 1 3 4 5 8 5 Combat Bots Only 12 | . 5 4 3 . 3 3 7 7 6 . 1 6 5 4 2 5 1 1 3 4 12 3 . 2 4 6 7 10 . 2 5 . 3 7 5 6 5 Max Kills in Single Turn 4 | 1 4 4 2 . 1 2 3 4 1 1 1 3 2 2 1 2 2 1 2 3 3 1 1 1 2 2 3 2 . 1 2 1 1 3 1 1 2 Gunslinging 1 | . . . . . . . . . . . . . . . . . . . . . 1 . . . 1 . . . . . . . . . . . . Exploded 3 | . 3 3 2 . 1 2 3 3 1 . . 3 2 2 . 2 . . 2 3 3 1 . . . . 1 . . . . . . 3 . . . Melee 1 | . . . . . . 1 . 1 . . . . . . . . . . . . . . . . . . . . . . . . . 1 1 1 1 Uniques/NPCs Destroyed 10 | . . . . . . . . . . . . . . . . . . . . . . . . . . 1 . . . . . . . . . 2 7 CL-0N3 (-4/Factory) MAIN.C Shell (-1/Command) MAIN.C (-1/Command) A8 (-1/Access_0) A6 (-1/Access_0) A5 (-1/Access_0) A2 (-1/Access_0) A4 (-1/Access_0) Architect (-1/Access_0) A3 (-1/Access_0) Combat | -11 -10 -9 -9 -9 -8 -8 -8 -8 -8 -8 -7 -7 -6 -6 -6 -6 -6 -6 -6 -6 -5 -5 -5 -5 -4 -4 -4 -4 -4 -3 -3 -2 -2 -2 -1 -1 -1 -------- Run | Yrd Mat Mat Min Exi Min Mat Gar Mat Gar Mat Fac Gar Fac Gar Fac Ext Cet Arc Hub Gar Fac Upp Upp War Pro Fac Gar Arm Lab Res Tes Res Qua Frg Acc Com Ac0 Hostile Shots Fired 3929 | . 133 85 26 . 30 68 143 100 120 . 59 67 39 143 38 197 6 3 55 311 501 25 . 9 132 362 128 214 . 73 88 18 5 142 85 99 425 Missed 1356 | . 40 28 10 . 11 24 34 17 42 . 26 15 10 39 13 84 2 1 11 99 134 7 . 4 37 125 49 45 . 11 15 10 4 71 53 39 246 Hits 2573 | . 93 57 16 . 19 44 109 83 78 . 33 52 29 104 25 113 4 2 44 212 367 18 . 5 95 237 79 169 . 62 73 8 1 71 32 60 179 Melee 53 | . . . . . 5 1 8 1 . . . . . 2 . . . . . . 15 1 . . 7 . 4 2 . 5 . . . 2 . . . Projectile 2520 | . 93 57 16 . 14 43 101 82 78 . 33 52 29 102 25 113 4 2 44 212 352 17 . 5 88 237 75 167 . 57 73 8 1 69 32 60 179 AOE 25 | . . . . . . . 2 . . . . . . 3 . . . . . 2 1 . . . . 8 . 5 . . . . . . . 4 . Critical Strikes 145 | . 1 1 1 . 3 3 4 5 5 . 1 3 1 1 1 1 . . 1 2 20 2 . 1 5 18 6 12 . 4 4 . . 9 . 7 23 Actively Blocked 62 | . . . . . . . . . . . . . . . . . . . . . . . . . . 5 1 9 . 4 4 . . 9 . 7 23 Part Disruptions 13 | . . . . . . . . . 1 . . . . . . . . . . . 2 . . 1 . 1 . 3 . . . . . . . 3 2 Damage Taken 41345 | . 925 941 204 . 387 606 1975 1237 1072 . 290 568 333 1492 296 1260 136 48 854 2860 7062 403 . 84 1435 4121 1550 3103 . 1324 1016 96 14 1061 308 1449 2835 Core 3748 | . 236 38 17 . 67 69 244 152 70 . 23 48 11 91 25 116 . . 76 301 690 20 . 12 76 472 87 196 . 60 48 . . 39 6 61 397 Absorbed by Shields 9813 | . . . . . . . . . . . . 100 . . . 102 . . . 29 781 . . 86 559 1160 164 658 . 511 472 99 14 819 325 1163 2771 Reduced by Siege Mode 397 | . . . . . . . . . . . . . . 25 . 43 15 . 20 78 112 . . . . . . 104 . . . . . . . . . Redirected to Shielding 234 | . . . . . . . . . . . . . . 59 3 13 . 15 . . . . . . . 47 . . . . . . . . . . 97 Ignored by Resistances 519 | . . . . . . . . . . . . . . . . . . . . . . . . . . 42 104 . . . 54 . . 40 12 47 220 Regen/Repaired (Parts) 10287 | . . . . . . . . 159 . . . . 226 . . . 83 . 276 567 1182 268 . 553 402 1768 199 432 . 789 954 24 62 619 92 643 989 Core Remaining (%) 52 | 100 5 . . . 69 . . . . 2 . 89 . . . . . . . 27 . . . . 20 . . . 34 . 91 . . 76 . . 60 Volleys Fired 1949 | 2 98 81 16 . 13 65 84 70 40 1 3 47 25 135 36 69 17 54 16 84 143 10 10 17 38 184 84 105 7 52 80 10 18 167 4 1 63 Largest 3 | 2 2 2 2 . 2 2 2 2 2 2 3 3 2 2 2 2 2 2 2 3 3 3 1 3 3 3 3 3 1 3 3 2 2 2 1 1 1 Hottest 358 | 40 100 113 90 . 90 101 136 98 109 72 100 100 98 110 110 110 110 156 110 190 259 197 33 113 220 304 287 319 58 294 268 148 152 358 100 100 100 Shots Fired 3323 | 4 185 155 29 . 27 128 150 137 70 3 9 80 35 191 68 129 35 93 30 189 309 22 15 30 84 337 139 198 6 79 92 11 19 168 4 1 62 Gun 1077 | 4 174 100 26 . 27 6 . 65 12 1 6 41 10 59 . . . 85 . 96 179 20 15 26 50 61 6 8 . . . . . . . . . Cannon 2117 | . . 50 . . . 120 139 64 54 2 3 37 21 128 68 123 35 8 29 90 95 . . . 34 273 131 187 6 75 86 6 19 167 4 1 62 Launcher 96 | . . 3 3 . . 2 11 8 4 . . 2 4 4 . 6 . . 1 3 35 2 . . . . 2 3 . . 2 . . 1 . . . Special 33 | . 11 2 . . . . . . . . . . . . . . . . . . . . . 4 . 3 . . . 4 4 5 . . . . . Kinetic 1409 | 4 170 8 . . . 60 52 68 43 3 9 78 31 128 68 123 35 8 29 140 128 8 13 12 16 21 6 46 6 23 24 1 10 24 . 1 13 Thermal 1290 | . 11 52 . . . 60 87 61 23 . . . . 59 . . . 85 . 46 146 12 2 . 34 240 30 133 . 46 35 . 7 69 4 . 48 Explosive 72 | . . 3 3 . . 2 11 8 4 . . 2 4 4 . 6 . . 1 3 18 . . . . . . . . . 2 . . 1 . . . Electromagnetic 463 | . 4 92 26 . 27 6 . . . . . . . . . . . . . . 17 2 . . . 52 103 19 . 6 27 5 2 74 . . 1 Entropic 69 | . . . . . . . . . . . . . . . . . . . . . . . . 14 34 21 . . . . . . . . . . . Robot Hit Streak 51 | 3 7 24 5 . 9 6 20 15 15 1 4 12 5 31 6 18 19 7 15 33 16 4 5 14 18 24 14 15 . 44 51 9 5 17 . 21 20 Robot Miss Streak 9 | . 5 6 3 . 3 3 4 9 8 4 3 3 4 3 4 3 2 5 2 3 4 2 1 2 4 4 1 3 . . 2 1 . 9 . . 7 Penetration Max 1 | . . . . . . . . 1 . . . 1 . . . 1 . . . 1 1 . . 1 . 1 1 . . . . . . . . 1 1 Secondary Targets 11 | . 1 . . . 2 . . . . . . . . . . . . . . . 3 . . 1 4 . . . . . . . . . . . . Max Gunslinging Chain 2 | . 1 . . . 1 . . . . . . . . . . . . . . . 2 . . 1 1 . . . . . . . . . . . . Shots Hit Robots 2299 | 3 103 110 17 . 24 80 99 97 46 3 10 61 18 135 36 90 29 57 21 139 159 12 9 23 56 214 94 114 . 44 42 6 1 110 16 88 133 Core Hits 1253 | 2 37 72 12 . 17 37 55 61 40 1 2 42 16 73 18 53 7 23 10 60 124 10 5 10 25 92 43 46 . 12 34 1 2 70 9 37 95 Critical Kills 37 | . . . . . . . . 2 . . . . . . . . . . . . . . 3 1 1 3 2 . . 1 1 . 2 8 . . 13 Critical Parts Destroyed 32 | . 2 . . . . . . 3 . . 1 1 . . . . . . . 1 . . 1 1 3 1 . . . . . . . 6 . 3 9 Critical Strikes 144 | . 2 . . . . 2 1 5 . . 1 3 1 8 2 7 . 7 3 6 8 . 4 2 4 6 6 3 . 1 2 . 2 17 1 5 35 Burn 15 | . . . . . . . . . . . . . . 4 . . . 7 . 1 3 . . . . . . . . . . . . . . . . Meltdown 14 | . . . . . . . . . . . . . . . . . . . . . . . . . . 3 2 . . 1 1 . 2 2 . . 3 Destroy 57 | . 2 . . . . . . 2 . . . 1 . . . . . . . 1 . . 4 2 3 . . . . . . . . 12 . 4 26 Blast 33 | . . . . . . 2 1 . . . . . 1 4 2 7 . . 3 4 5 . . . . . . 3 . . 1 . . . . . . Corrupt 8 | . . . . . . . . . . . . . . . . . . . . . . . . . . 2 4 . . . . . . 2 . . . Smash 4 | . . . . . . . . 3 . . 1 . . . . . . . . . . . . . . . . . . . . . . . . . . Sever 11 | . . . . . . . . . . . . 2 . . . . . . . . . . . . . . . . . . . . . 1 1 1 6 Detonate 2 | . . . . . . . . . . . . . . . . . . . . . . . . . 1 1 . . . . . . . . . . . Melee Attacks 469 | . . 14 . . 2 17 36 26 16 6 8 19 . . . . . . . . . . 2 . . . . . . . . . . 52 28 128 115 Impact 87 | . . . . . . . 31 24 16 5 8 3 . . . . . . . . . . . . . . . . . . . . . . . . . Slashing 301 | . . 14 . . 2 17 5 2 . 1 . 16 . . . . . . . . . . . . . . . . . . . . . 52 28 76 88 Piercing 2 | . . . . . . . . . . . . . . . . . . . . . . . 2 . . . . . . . . . . . . . . Entropic 79 | . . . . . . . . . . . . . . . . . . . . . . . . . . . . . . . . . . . . 52 27 Sneak Attacks 26 | . . 4 . . 2 2 . 5 . 1 2 1 . . . . . . . . . . . . . . . . . . . . . 3 . 5 1 Combat Hostiles 1 | . . . . . . . . . . . . . . . . . . . . . . . . . . . . . . . . . . . . 1 . Follow-up Attacks 30 | . . . . . . . . . . . . . . . . . . . . . . . . . . . . . . . . . . . 2 19 9 Damage Inflicted 105715 | 36 1434 2634 785 . 770 1887 3145 3486 1261 96 382 3259 1315 5756 2255 5421 1355 1495 1085 4752 9685 412 62 626 2221 8854 4236 6045 . 1767 3053 234 362 7611 1257 7651 9030 Guns 15873 | 36 1275 1307 273 . 377 80 . 903 170 17 122 420 120 1045 . . . 1179 . 1773 2552 217 62 626 1347 1772 116 84 . . . . . . . . . Cannons 54906 | . . 554 . . . 1421 1942 827 850 8 56 1377 721 4237 2162 4324 1355 316 888 2622 1557 . . . 732 6675 3807 5227 . 1767 2354 234 362 6500 . 27 2004 Explosions 15043 | . 159 476 484 . 271 164 1203 871 241 . . 466 474 474 . 1057 . . 141 349 5535 195 . . 142 178 313 734 . . 699 . . 417 . . . Melee 19346 | . . 291 . . 122 222 . 856 . 62 196 996 . . . . . . . . . . . . . . . . . . . . . 694 1257 7624 7026 Ramming 547 | . . 6 28 . . . . 29 . 9 8 . . . 93 40 . . 56 8 41 . . . . 229 . . . . . . . . . . . Kinetic 29434 | 36 1229 81 . . . 763 639 949 609 25 178 1797 841 4237 2162 4324 1355 316 888 3381 2159 59 62 74 53 442 116 1700 . 412 276 . . 63 . 27 181 Thermal 28903 | . 159 619 103 . 271 658 1303 781 411 . . . . 1045 . . . 1179 . 1014 3373 158 . . 874 5462 592 3034 . 1185 1048 . 312 3534 . . 1788 Explosive 10312 | . . 411 381 . . 164 1203 871 241 . . 466 474 474 . 1057 . . 141 349 2381 . . . . . . 583 . . 699 . . 417 . . . Electromagnetic 14510 | . 46 1226 273 . 377 80 . . . . . . . . . . . . . . 1731 195 . . . 1904 3528 728 . 170 1030 234 50 2903 . . 35 Impact 1077 | . . . . . . . . 763 . . 196 118 . . . . . . . . . . . . . . . . . . . . . . . . . Slashing 11387 | . . 291 . . 122 222 . 93 . 62 . 878 . . . . . . . . . . . . . . . . . . . . . 694 1257 3235 4533 Piercing . | . . . . . . . . . . . . . . . . . . . . . . . . . . . . . . . . . . . . . . Entropic 9545 | . . . . . . . . . . . . . . . . . . . . . . . . 552 1294 817 . . . . . . . . . 4389 2493 Highest Corruption 28 | . . 7 7 7 16 . 1 1 10 10 . 1 . . 3 3 3 9 1 2 22 22 16 23 . 16 19 28 28 6 6 . . 6 2 6 2 Average Corruption 8 | . . 6 7 7 15 . 1 1 8 10 . 1 . . 2 3 3 2 1 1 10 18 16 17 . 9 18 23 28 2 2 . . 3 1 3 2 Corruption Purged 30 | . . . . . . . . . . . . . . . . . . 9 . . . 6 . . . . . . . . 6 . . . . 9 . Corruption Blocked . | . . . . . . . . . . . . . . . . . . . . . . . . . . . . . . . . . . . . . . Effects 807 | . . 32 33 6 31 . 2 18 42 12 . 8 . . 9 29 7 7 13 16 84 62 64 3 . 91 84 71 14 5 12 . . 20 2 16 14 Message Errors 184 | . . 9 7 1 6 . . 7 6 2 . 3 . . 1 8 1 2 2 2 15 13 17 2 . 27 17 16 3 2 3 . . 5 1 4 2 Matter Fused 223 | . . 10 9 4 10 . 1 5 18 5 . 3 . . 2 9 . 2 4 7 19 18 16 . . 20 17 17 4 2 7 . . 6 . 5 3 Heat Flow Errors 111 | . . 5 6 . 2 . . 1 5 1 . 2 . . 2 3 1 2 3 1 8 10 10 . . 12 11 11 2 . 1 . . 6 . 3 3 Energy Discharges 73 | . . 1 2 . 2 . . 1 4 1 . . . . . 5 2 . . 1 12 9 6 1 . 8 8 4 . 1 . . . 2 . 2 1 Parts Rejected 15 | . . . . . 1 . . 1 . . . . . . . . . . . . 2 1 . . . 3 3 2 . . . . . . . 1 1 Parts Fused 7 | . . . 1 . . . . . . . . . . . . . . . . 1 . . 1 . . . 2 1 . . . . . . . . 1 Data Loss (minor) 76 | . . 4 4 1 5 . 1 1 6 1 . . . . 1 2 2 . 1 1 8 5 5 . . 9 7 6 3 . 1 . . . 1 . 1 Data Loss (major) 35 | . . 1 2 . 3 . . . . 1 . . . . 1 . . 1 2 2 3 2 2 . . 3 5 3 1 . . . . 1 . 1 1 Misfires 29 | . . 2 1 . 1 . . 2 . 1 . . . . 1 . 1 . 1 . 7 2 5 . . 1 2 2 . . . . . . . . . Alerts 16 | . . . . . 1 . . . 1 . . . . . . 1 . . . 1 2 1 1 . . 2 5 1 . . . . . . . . . Misdirections 5 | . . . . . . . . . . . . . . . . . . . . . . . 1 . . 3 1 . . . . . . . . . . Weapon Failures 33 | . . . 1 . . . . . 2 . . . . . 1 1 . . . . 8 1 . . . 3 6 8 1 . . . . . . . 1 Overload Shots . | . . . . . . . . . . . . . . . . . . . . . . . . . . . . . . . . . . . . . . Overflow Damage 5085 | . 11 49 . . 32 54 35 319 35 . 190 296 207 253 355 422 75 45 136 188 229 . . . . 252 17 137 . 75 59 33 . 722 135 452 272 Projectiles 2789 | . . 10 . . . 15 15 8 2 . 19 185 207 232 339 410 75 45 134 188 11 . . . . 200 17 137 . 75 53 33 . 350 . . 29 Explosions 373 | . 11 19 . . . 14 20 7 33 . . 28 . 21 . 12 . . . . 202 . . . . . . . . . 6 . . . . . . Melee 1923 | . . 20 . . 32 25 . 304 . . 171 83 . . 16 . . . 2 . 16 . . . . 52 . . . . . . . 372 135 452 243 Knockbacks 121 | . . . 1 . . 8 12 . 11 . 4 6 2 12 5 12 2 1 5 7 6 . . . . 2 . 9 . 5 2 . . 6 . . 3 Impact 7 | . . . 1 . . . . . . . 1 . . . 2 1 . . . . . . . . . 2 . . . . . . . . . . . Kinetic 107 | . . . . . . 8 9 . 11 . 2 6 2 12 3 11 2 1 5 6 6 . . . . . . 8 . 5 2 . . 5 . . 3 Secondary 7 | . . . . . . . 3 . . . 1 . . . . . . . . 1 . . . . . . . 1 . . . . . 1 . . . Self-Inflicted Damage 1296 | . 43 48 . . 46 . 324 . . . . . . 77 . . . . . . 479 46 . . 66 . 92 75 . . . . . . . . . Shots 32 | . 2 1 . . 1 . 8 . . . . . . 2 . . . . . . 13 2 . . 1 . 1 1 . . . . . . . . . Rammed 29 | . . 1 4 . . . . 7 . 1 . . . . 2 3 . . 6 1 1 . . . . 3 . . . . . . . . . . . Targets Rammed 38 | . . 1 5 . . . . 7 . 1 1 . . . 2 3 . . 6 1 1 . . . . 10 . . . . . . . . . . . Kicked 7 | . . . . . . . . . . . . . . . . . . . . . . . . . . 7 . . . . . . . . . . . Crushed 2 | . . . 1 . . . . . . . 1 . . . . . . . . . . . . . . . . . . . . . . . . . . Highest Temperature 399 | . 102 297 315 . 236 312 232 215 251 273 . 255 94 132 284 263 111 220 234 318 363 222 190 . 87 399 273 394 197 324 226 318 106 360 210 269 194 Average Temperature 74 | . 27 81 95 . 117 114 65 62 62 147 . 43 26 18 106 118 9 55 67 59 100 88 75 . 32 89 70 118 68 78 52 86 52 129 128 23 89 Received Heat Transfer 6760 | . 255 264 114 . 162 270 450 612 72 . 66 181 99 249 . 386 . . 99 600 1267 90 . 6 154 442 262 210 . 35 176 4 . 152 8 24 51 Effects 18 | . . . . . . . . . . . . . . . 7 . . . 1 . 3 . . . . 3 1 3 . . . . . . . . . Shutdowns 3 | . . . . . . . . . . . . . . . . . . . . . 1 . . . . . . 2 . . . . . . . . . Energy Bleed 2 | . . . . . . . . . . . . . . . 1 . . . . . 1 . . . . . . . . . . . . . . . . Interference 12 | . . . . . . . . . . . . . . . 6 . . . 1 . . . . . . 3 1 1 . . . . . . . . . Short Circuit 1 | . . . . . . . . . . . . . . . . . . . . . 1 . . . . . . . . . . . . . . . . Siege Activations 17 | . . . . . . . . . . . . . . 2 . 5 1 . 1 3 3 . . . . . . 2 . . . . . . . . . Total Turns 389 | . . . . . . . . . . . . . . 31 . 88 37 . 79 51 58 . . . . . . 45 . . . . . . . . . Longest Duration 79 | . . . . . . . . . . . . . . 23 . 27 37 . 79 25 22 . . . . . . 26 . . . . . . . . . Martial Activations . | . . . . . . . . . . . . . . . . . . . . . . . . . . . . . . . . . . . . . . Shielding Activations . | . . . . . . . . . . . . . . . . . . . . . . . . . . . . . . . . . . . . . . Robots Disrupted 5 | . . . 1 . . . . . . . . . . . . . . . . . . . . . . 2 1 . . . . . . 1 . . . Combat Hostiles 5 | . . . 1 . . . . . . . . . . . . . . . . . . . . . . 2 1 . . . . . . 1 . . . Robots Corrupted 59 | . . . 1 . . . . 1 . . 1 1 . . 1 . . . . . 5 . . . . 7 19 3 . . 3 1 . 16 . . . Combat Hostiles 51 | . . . 1 . . . . 1 . . . . . . . . . . . . 4 . . . . 6 19 3 . . 2 . . 15 . . . Parts Fried 126 | . . 7 1 . 2 1 . 2 . . 3 . . . 2 . . . . . 10 . . . . 16 32 3 . . 5 . . 38 . . 4 Impact Corruptions 20 | . . . . . . . . 7 . . 5 3 . . 1 . . . 1 . 1 . . . . 2 . . . . . . . . . . . Robots Melted 15 | . . . . . . . . . . . . . . . . . . . . 1 . . . . . 3 2 . . 1 1 . 2 2 . . 3 Combat Hostiles 13 | . . . . . . . . . . . . . . . . . . . . 1 . . . . . 3 1 . . . 1 . 2 2 . . 3 Parts Melted 57 | . . . . . . . 6 1 . . . . . 1 . . . 5 . 3 5 1 . 1 . 3 2 5 . 1 11 . 3 2 1 . 6 Heat Transferred 29794 | . 300 1099 150 . 250 1184 2257 1406 555 . . . . 2331 . . . 3014 . 1969 3366 261 . . 150 3622 557 2580 . 925 740 . 222 1924 . . 932 Parts Sabotaged . | . . . . . . . . . . . . . . . . . . . . . . . . . . . . . . . . . . . . . . Parts Stolen . | . . . . . . . . . . . . . . . . . . . . . . . . . . . . . . . . . . . . . . Parts Stripped . | . . . . . . . . . . . . . . . . . . . . . . . . . . . . . . . . . . . . . . Power Chain Reactions 16 | . 2 3 1 . 3 . . . . . . . . . . . . . . . 4 . . . 2 . 1 . . . . . . . . . . Alert | -11 -10 -9 -9 -9 -8 -8 -8 -8 -8 -8 -7 -7 -6 -6 -6 -6 -6 -6 -6 -6 -5 -5 -5 -5 -4 -4 -4 -4 -4 -3 -3 -2 -2 -2 -1 -1 -1 ------- Run | Yrd Mat Mat Min Exi Min Mat Gar Mat Gar Mat Fac Gar Fac Gar Fac Ext Cet Arc Hub Gar Fac Upp Upp War Pro Fac Gar Arm Lab Res Tes Res Qua Frg Acc Com Ac0 Maximum Alert Level 5 | . 1 2 1 . . 1 5 4 4 2 . 4 2 4 3 4 2 1 2 4 5 . . . . 2 5 4 . . 1 . . 5 3 3 . Low Security (%) 26 | 100 93 42 90 . 100 49 5 . . . 100 35 . . . . . . 1 . . . . . . 30 . . . 100 49 100 100 19 . . . Level 1 16 | . 6 14 9 . . 50 1 . . 90 . 9 . 2 . 35 . 100 95 16 . . . . . 31 4 . . . 50 . . 13 . . . Level 2 19 | . . 43 . . . . 21 . . 9 . 22 100 28 25 57 100 . 3 18 25 . . . . 38 19 23 . . . . . 9 . 7 . Level 3 19 | . . . . . . . 32 46 31 . . 24 . 22 74 3 . . . 41 21 . . . . . 25 30 . . . . . 24 100 92 . Level 4 15 | . . . . . . . 24 53 68 . . 8 . 45 . 2 . . . 23 43 . . . . . 28 45 . . . . . 31 . . . Level 5 2 | . . . . . . . 14 . . . . . . . . . . . . . 8 . . . . . 21 . . . . . . . . . . High Security . | . . . . . . . . . . . . . . . . . . . . . . . . . . . . . . . . . . . . . . Max Security . | . . . . . . . . . . . . . . . . . . . . . . . . . . . . . . . . . . . . . . Peak Influence 1870 | 5 215 633 244 . 103 293 1726 1205 1364 664 95 1144 600 1549 812 1158 671 380 418 1221 1870 . . . . 571 1745 1199 . 118 383 160 107 1608 1006 881 . Initial 915 | . . 83 244 . . . 164 841 768 664 95 2 600 389 812 320 645 237 99 207 640 . . . . . 314 915 . . 65 152 . 38 784 643 . Average 568 | . 39 292 93 . 17 156 1000 1059 1148 309 17 485 529 1006 721 487 594 336 308 792 1072 . . . . 300 1087 948 . 9 176 32 43 797 912 777 . Influence Increases 25599 | 5 504 1113 225 . 166 655 1782 971 646 26 59 1142 290 1200 253 1690 278 278 1020 1124 2288 100 . 120 370 1737 1521 1143 . 307 988 66 213 2153 381 567 218 Destroy 0b10 Robot/C 11860 | . 300 580 120 . 120 340 760 600 360 . 20 460 140 580 100 780 140 80 300 580 1100 80 . 80 240 820 740 540 . 100 360 . 60 940 140 300 . Destroy 0b10 Robot/NC 820 | 5 45 85 10 . 10 50 5 55 . 5 20 25 15 25 60 50 10 35 35 15 20 . . 10 5 70 5 10 . 5 50 10 . 45 10 20 . Destroy Leader 1886 | . 64 170 30 . 20 82 20 148 10 . 12 50 34 40 46 106 . . 96 70 200 20 . . 20 174 60 124 . 40 44 4 . 100 42 60 . Allied During Kill 1154 | . . . . . . . 23 . . . . . . . . 480 109 115 252 35 9 . . . . . 2 12 . . 63 1 . 35 . 18 . Trap Triggered on 0b10 40 | . . . . . . . . . . . . 30 . . . . . . . . . . . . . 10 . . . . . . . . . . . Successful Hack 1509 | . 21 55 . . . 30 6 16 14 17 . 10 70 . . 76 . . 35 43 55 . . . . 236 14 102 . 95 168 18 54 196 132 46 . Select Force Hacks 110 | . . 60 . . . . . . . . . . . . . . . . 50 . . . . . . . . . . . . . . . . . . Disable Machine 1725 | . 15 15 . . . 60 15 75 . . . 60 15 45 30 15 . 45 60 15 255 . . . . 90 90 180 . 15 180 . 90 180 30 30 120 Anti-Garrison Action 2900 | . . . . . . . 750 . 200 . . 450 . 450 . . . . 150 300 150 . . . . . 450 . . . . . . . . . . Destroy Structure 2290 | . 14 58 35 . 16 33 128 62 32 4 7 12 16 30 17 48 19 3 42 21 424 . . . . 202 130 160 . 52 108 3 9 432 27 78 68 Partial Spotted 105 | . . . . . . . 15 . 15 . . . . . . . . . . . . . . . . . . . . . . 30 . . . 15 30 Lose Combat Pursuer 1200 | . 45 90 30 . . 60 60 15 15 . . 45 . 30 . 135 . . . 45 75 . . 30 105 135 30 15 . . 15 . . 225 . . . Influence Decreases 25469 | 5 307 681 822 32 166 402 309 1515 464 1180 265 2 878 207 1147 1191 839 586 1009 199 1643 1229 683 140 404 1288 225 1736 1152 191 833 337 145 913 684 804 856 Entered New Map 11131 | . . 114 385 32 . . 89 885 414 700 115 2 544 167 737 335 509 356 186 89 581 691 141 54 34 . 135 830 1152 . 51 119 . 30 524 362 768 Time Decay 10387 | 5 307 547 437 . 143 352 . 610 . 170 150 . 334 . 410 526 190 230 583 . 662 518 542 86 350 608 . 486 . 181 482 198 145 583 160 392 . Lost Part 803 | . . 20 . . 23 40 80 10 50 . . . . 20 . 20 . . . 50 220 20 . . 20 80 20 50 . 10 . . . . . 30 40 Lost Ally 1048 | . . . . . . 10 140 10 . 10 . . . 20 . 160 140 . 90 60 180 . . . . . 70 70 . . . 20 . . . 20 48 Purge Threat 2100 | . . . . . . . . . . 300 . . . . . 150 . . 150 . . . . . . 600 . 300 . . 300 . . 300 . . . Squads Dispatched 114 | . 2 6 . . . . . 5 . 3 1 . 3 . 2 4 . . 8 . 24 . . . 1 8 . 7 . 5 6 1 4 9 6 9 . Investigation 18 | . . 2 . . . . . 1 . . . . . . . . . . 2 . 3 . . . . 1 . 2 . 2 1 . 1 . . 3 . Extermination 31 | . . . . . . . . . . . 1 . 2 . 2 . . . 3 . 4 . . . . 5 . 3 . . 2 . 1 4 1 3 . Reinforcement 37 | . 2 4 . . . . . 3 . 1 . . . . . 2 . . 1 . 6 . . . . 2 . 1 . 3 2 1 2 1 4 2 . Assault 27 | . . . . . . . . 1 . 2 . . 1 . . 2 . . 2 . 11 . . . 1 . . 1 . . 1 . . 4 . 1 . Garrison 1 | . . . . . . . . . . . . . . . . . . . . . . . . . . . . . . . . . . . 1 . . Intercept . | . . . . . . . . . . . . . . . . . . . . . . . . . . . . . . . . . . . . . . Searches Triggered . | . . . . . . . . . . . . . . . . . . . . . . . . . . . . . . . . . . . . . . Unchained Authorized 5 | . . . . . . . . . . . . . . . . . . . . . . . . . . 1 . 1 . . 1 . 1 . 1 . . Construction Impeded 6 | . . 1 . . . . . 1 . . . . . . . . . . . . 1 . . . . 1 . . . . 1 . . 1 . . . Haulers Reinforced 6 | . . . . . . . . . . . . . . . . . . . . . 1 . . . . . . . . 1 1 1 . . 2 . . Active Scanning Responses . | . . . . . . . . . . . . . . . . . . . . . . . . . . . . . . . . . . . . . . Cargo Convoy Interrupts 1 | . . . . . . . . . . . . . . . . . . . . . 1 . . . . . . . . . . . . . . . . Stealth | -11 -10 -9 -9 -9 -8 -8 -8 -8 -8 -8 -7 -7 -6 -6 -6 -6 -6 -6 -6 -6 -5 -5 -5 -5 -4 -4 -4 -4 -4 -3 -3 -2 -2 -2 -1 -1 -1 --------- Run | Yrd Mat Mat Min Exi Min Mat Gar Mat Gar Mat Fac Gar Fac Gar Fac Ext Cet Arc Hub Gar Fac Upp Upp War Pro Fac Gar Arm Lab Res Tes Res Qua Frg Acc Com Ac0 Distress Signals 58 | . 1 4 . . . 7 . 2 . . . 1 . . 1 1 1 . 3 . 2 . . . . 4 . . . 8 . 3 . 3 . 17 . Communications Jammed 103 | . . . . . . . . . . . . . 1 . . 66 . . 15 11 1 . . . . 1 . 8 . . . . . . . . . Distress Signals 95 | . . . . . . . . . . . . . 1 . . 66 . . 15 11 1 . . . . 1 . . . . . . . . . . . Times Spotted 966 | . 24 43 8 . 6 33 37 49 17 1 4 27 10 26 8 52 8 33 19 31 76 4 . 38 18 83 37 40 . 32 27 9 10 59 21 23 53 Peak Tracking Total 11 | . 5 4 3 . 3 6 7 5 8 1 1 6 5 5 2 7 4 1 4 4 11 3 . 10 9 7 5 5 . 9 5 4 5 7 10 5 10 Tactical Retreats 54 | . 1 4 1 . . 4 3 1 1 . . 1 . 1 . 8 . . . 3 5 . . 1 1 6 2 1 . . 1 . . 6 . . 3 ID Masks Used 1 | . . . . . . . . . . . . . . . . . . . . . . . . . . . . 1 . . . . . . . . . IFF Responses 41 | . . . . . . . . . . . . . . . . . . . . . . . . . . . . 41 . . . . . . . . . Traps | -11 -10 -9 -9 -9 -8 -8 -8 -8 -8 -8 -7 -7 -6 -6 -6 -6 -6 -6 -6 -6 -5 -5 -5 -5 -4 -4 -4 -4 -4 -3 -3 -2 -2 -2 -1 -1 -1 ------- Run | Yrd Mat Mat Min Exi Min Mat Gar Mat Gar Mat Fac Gar Fac Gar Fac Ext Cet Arc Hub Gar Fac Upp Upp War Pro Fac Gar Arm Lab Res Tes Res Qua Frg Acc Com Ac0 Traps Triggered 30 | . . . . . . . 1 1 . . . . . . . 1 . . 1 . 4 . . . . 7 4 . . . 1 . . 9 . 1 . Indirectly 5 | . . . . . . . . 1 . . . . . . . . . . . . 1 . . . . . 3 . . . . . . . . . . Trap Hack Attempts . | . . . . . . . . . . . . . . . . . . . . . . . . . . . . . . . . . . . . . . Triggered . | . . . . . . . . . . . . . . . . . . . . . . . . . . . . . . . . . . . . . . Disarmed 6 | . . . . . . . . . . . . . . . . . . . . . . . . . . . . . . . . . . . 6 . . Reprogrammed 6 | . . . . . . . . . . . . . . . . . . . . . . . . . . . . . . 6 . . . . . . . Reused 4 | . . . . . . . . . . . . 3 . . . . . . . . . . . . . 1 . . . . . . . . . . . Traps Extracted 4 | . . . 4 . . . . . . . . . . . . . . . . . . . . . . . . . . . . . . . . . . Installed 8 | . . . . . . . . . . . . 4 . . . . . . . . . . . . . 4 . . . . . . . . . . . Triggered 4 | . . . . . . . . . . . . 3 . . . . . . . . . . . . . 1 . . . . . . . . . . . Most Traps Carried 4 | . . . 4 4 4 4 4 4 4 4 4 4 . . . . . . . . . . . . 4 4 . . . . . . . . . . . Machines | -11 -10 -9 -9 -9 -8 -8 -8 -8 -8 -8 -7 -7 -6 -6 -6 -6 -6 -6 -6 -6 -5 -5 -5 -5 -4 -4 -4 -4 -4 -3 -3 -2 -2 -2 -1 -1 -1 ---------- Run | Yrd Mat Mat Min Exi Min Mat Gar Mat Gar Mat Fac Gar Fac Gar Fac Ext Cet Arc Hub Gar Fac Upp Upp War Pro Fac Gar Arm Lab Res Tes Res Qua Frg Acc Com Ac0 Machines Disabled 167 | . 2 1 . . . 4 10 5 2 . . 10 1 9 2 5 . 3 5 5 18 . . 2 . 6 13 12 1 1 12 . 6 18 2 2 10 Max in Single Turn 6 | . 1 1 . . . 2 1 1 1 . . 1 1 1 1 . . 1 . 1 6 . . 1 . 2 2 3 1 1 3 . 1 2 1 1 1 Garrison Access 10 | . . . . . . . . . . 1 . . . . . . . . 1 . 1 . . . . 1 . . . 1 1 2 . 1 1 . . Garrison Relay 28 | . . . . . . . 7 . 2 . . 4 . 5 . . . . . 4 . . . . . . 6 . . . . . . . . . . Phase Generator 4 | . . . . . . . 1 . . . . 1 . 1 . . . . . . . . . . . . 1 . . . . . . . . . . Network Hub 3 | . . . . . . . . . . . . . . . . . . . 3 . . . . . . . . . . . . . . . . . . Machines Repaired . | . . . . . . . . . . . . . . . . . . . . . . . . . . . . . . . . . . . . . . Machines Dismantled 4 | . . . . . . . 1 . . . . 2 . . . . . . . . . . . 1 . . . . . . . . . . . . . Machines Sabotaged 1 | . . . . . . . . . . . . . . . . . . . 1 . . . . . . . . . . . . . . . . . . Overloaded Fab Kills . | . . . . . . . . . . . . . . . . . . . . . . . . . . . . . . . . . . . . . . Hacking | -11 -10 -9 -9 -9 -8 -8 -8 -8 -8 -8 -7 -7 -6 -6 -6 -6 -6 -6 -6 -6 -5 -5 -5 -5 -4 -4 -4 -4 -4 -3 -3 -2 -2 -2 -1 -1 -1 --------- Run | Yrd Mat Mat Min Exi Min Mat Gar Mat Gar Mat Fac Gar Fac Gar Fac Ext Cet Arc Hub Gar Fac Upp Upp War Pro Fac Gar Arm Lab Res Tes Res Qua Frg Acc Com Ac0 Machines Accessed 179 | . 4 10 . 1 . 7 2 6 1 3 2 2 6 3 6 16 . . 7 4 8 2 . 3 . 20 2 9 . 11 11 3 4 12 9 4 1 Terminals 115 | . 3 6 . . . 6 2 3 1 3 . 2 2 3 3 16 . . 6 4 2 1 . . . 9 2 6 . 3 8 1 2 10 7 4 . Fabricators 11 | . . . . . . . . . . . 1 . 1 . 1 . . . . . 2 . . . . 2 . 2 . 2 . . . . . . . Repair Stations 10 | . . . . . . . . 2 . . . . 1 . . . . . . . 2 . . . . 2 . . . 1 1 . 1 . . . . Recycling Units 11 | . 1 2 . . . . . . . . . . . . 1 . . . . . 1 . . . . 3 . 1 . 1 . 1 . . . . . Scanalyzers 13 | . . 2 . . . . . . . . . . 1 . 1 . . . . . 1 . . . . 2 . . . 3 1 . 1 1 . . . Garrison Access 13 | . . . . . . 1 . 1 . . 1 . 1 . . . . . 1 . . . . . . 2 . . . 1 1 1 . 1 2 . . Total Hacks 728 | . 9 31 . 1 . 20 5 16 3 10 4 4 16 8 12 29 . . 31 20 32 2 . 4 . 132 9 57 . 76 55 9 21 52 33 10 17 Successful 391 | . 7 21 . 1 . 15 2 9 1 6 3 1 12 1 3 17 . . 19 5 14 2 . 4 . 61 1 24 . 46 32 4 11 34 12 6 17 Failed 336 | . 2 9 . . . 5 3 7 2 4 1 3 4 7 9 12 . . 12 15 18 . . . . 71 8 33 . 30 23 5 10 18 21 4 . Catastrophic 52 | . . 1 . . . . 1 2 1 2 . . . 1 . . . . . 6 4 . . . . 9 4 9 . 2 4 1 . 3 2 . . Database Lockouts 1 | . . 1 . . . . . . . . . . . . . . . . . . . . . . . . . . . . . . . . . . . Manual 301 | . 8 18 . . . 11 . 7 2 5 2 2 6 1 5 7 1 . 16 16 14 . . . . 48 6 33 . 21 29 1 5 21 8 8 . Terminals 506 | . 8 24 . . . 19 5 10 3 10 . 4 5 8 7 29 . . 26 20 11 1 . . . 79 9 43 . 32 49 5 11 50 28 10 . Fabricators 42 | . . . . . . . . . . . 2 . 4 . 2 . . . . . 7 . . . . 7 . 10 . 10 . . . . . . . Repair Stations 39 | . . . . . . . . 5 . . . . 2 . . . . . . . 2 . . . . 17 . . . 9 2 . 2 . . . . Recycling Units 35 | . 1 2 . . . . . . . . . . . . 2 . . . . . 3 . . . . 14 . 4 . 7 . 2 . . . . . Scanalyzers 60 | . . 5 . . . . . . . . . . 4 . 1 . . . . . 9 . . . . 12 . . . 17 3 . 8 1 . . . Garrison Access 23 | . . . . . . 1 . 1 . . 2 . 1 . . . . . 5 . . . . . . 3 . . . 1 1 2 . 1 5 . . Terminal Hacks 168 | . . 5 . 1 . 4 2 . 1 5 . 1 1 1 1 13 . . 8 4 1 2 . 4 . 27 1 10 . 9 18 1 2 19 7 3 17 Record 23 | . . . . 1 . . . . . . . . . . . . . . . . . 1 . 3 . . . . . . . . . 1 . . 17 Part Schematic 6 | . . . . . . . . . . . . . . . . . . . 1 . . . . . . . . 1 . 1 2 . . 1 . . . Robot Schematic 1 | . . . . . . . . . . . . . . . . . . . . . . . . . . 1 . . . . . . . . . . . Robot Analysis 1 | . . . . . . . . . . . . . . . . . . . . . . . . . . 1 . . . . . . . . . . . Prototype ID Bank 8 | . . . . . . 1 . . . . . . . . . . . . 1 . . . . . . 3 . 2 . 1 . . . . . . . Open Door 17 | . . . . . . . 1 . . . . . . . 1 11 . . . 1 . 1 . 1 . . . . . . . . . . . 1 . Level Access Points 4 | . . . . . . . . . . 1 . . . . . . . . . . 1 . . . . . . . . . 1 . . 1 . . . Branch Access Points 6 | . . 1 . . . . . . . . . . . . . . . . . . . . . . . 2 . . . 1 . 1 . . 1 . . Emergency Access Points 2 | . . . . . . . 1 . . . . . . . . . . . . 1 . . . . . . . . . . . . . . . . . Machine Index 2 | . . . . . . . . . . . . . . . . . . . . . . . . . . . . . . 1 . . . 1 . . . Terminal Index 5 | . . 1 . . . . . . . . . . . . . . . . . . . . . . . 1 . . . . 1 . 1 1 . . . Repair Station Index 1 | . . . . . . . . . . . . . . . . . . . . . . . . . . . . 1 . . . . . . . . . Scanalyzer Index 2 | . . . . . . . . . . . . . . . . . . . . . . . . . . 1 . . . . 1 . . . . . . Garrison Index 2 | . . . . . . . . . . . . . 1 . . . . . . . . . . . . 1 . . . . . . . . . . . Alert Level 13 | . . . . . . . . . . . . . . . . 1 . . 1 . . . . . . 4 . 1 . . 2 . . 2 1 1 . Unreport Threat 14 | . . . . . . . . . . 2 . . . . . 1 . . 1 . . . . . . 4 . 2 . . 2 . . 2 . . . Locate Traps 14 | . . 1 . . . 1 . . . 1 . . . . . . . . 1 . . . . . . 2 . . . . . . . 4 3 1 . Disarm Traps 1 | . . . . . . . . . . . . . . . . . . . . . . . . . . . . . . . . . . . 1 . . Reprogram Traps 2 | . . . . . . . . . . . . . . . . . . . . . . . . . . . . . . 2 . . . . . . . Security Status 1 | . . . . . . . . . . . . . . . . . . . . . . . . . . . . . . . . . . 1 . . . Reinforcement Status 2 | . . . . . . . . . . . . . . . . . . . . . . . . . . 1 . . . . 1 . . . . . . Recall Extermination 1 | . . . . . . . . . . . . . . . . . . . . . . . . . . 1 . . . . . . . . . . . Recall Reinforcements 4 | . . . . . . . . . . . . . . . . . . . 1 . . . . . . 1 . . . 1 1 . . . . . . Hauler Manifests 5 | . . 1 . . . 1 . . . . . . . . . . . . . . . . . . . 1 . . . 1 1 . . . . . . Registered Components 2 | . . . . . . . . . . . . . . . . . . . . . . . . . . 1 . 1 . . . . . . . . . Registered Prototypes 2 | . . . . . . . . . . . . . . . . . . . . . . . . . . 1 . . . . 1 . . . . . . Zone Layout 20 | . . 1 . . . 1 . . . 1 . . . . . . . . 2 . . . . . . 1 . 2 . 1 5 . 1 4 1 . . Garrison Registry 2 | . . . . . . . . . . . . 1 . . . . . . . 1 . . . . . . . . . . . . . . . . . Patrol Navigation 1 | . . . . . . . . . . . . . . 1 . . . . . . . . . . . . . . . . . . . . . . . Security Stations 3 | . . . . . . . . . 1 . . . . . . . . . . 1 . . . . . . 1 . . . . . . . . . . Proto ID Catalog 1 | . . . . . . . . . . . . . . . . . . . . . . . . . . . . . . . . . . 1 . . . Fabricator Hacks 10 | . . . . . . . . . . . . . 1 . . . . . . . 2 . . . . . . 4 . 3 . . . . . . . Network Status 2 | . . . . . . . . . . . . . 1 . . . . . . . . . . . . . . 1 . . . . . . . . . Load Schematic 2 | . . . . . . . . . . . . . . . . . . . . . . . . . . . . 1 . 1 . . . . . . . Build 6 | . . . . . . . . . . . . . . . . . . . . . 2 . . . . . . 2 . 2 . . . . . . . Repair Station Hacks 25 | . . . . . . . . 4 . . . . 2 . . . . . . . . . . . . 7 . . . 8 2 . 2 . . . . Scan Component 13 | . . . . . . . . 2 . . . . 1 . . . . . . . . . . . . 4 . . . 4 1 . 1 . . . . Repair 12 | . . . . . . . . 2 . . . . 1 . . . . . . . . . . . . 3 . . . 4 1 . 1 . . . . Recycling Unit Hacks 9 | . 1 . . . . . . . . . . . . . 2 . . . . . 1 . . . . 1 . 1 . 1 . 2 . . . . . Report Inventory 1 | . . . . . . . . . . . . . . . 1 . . . . . . . . . . . . . . . . . . . . . . Retrieve Matter 1 | . . . . . . . . . . . . . . . 1 . . . . . . . . . . . . . . . . . . . . . . Retrieve Components 7 | . 1 . . . . . . . . . . . . . . . . . . . 1 . . . . 1 . 1 . 1 . 2 . . . . . Scanalyzer 39 | . . 4 . . . . . . . . . . 3 . . . . . . . 5 . . . . 6 . . . 15 2 . 4 . . . . Insert Component 17 | . . 3 . . . . . . . . . . 1 . . . . . . . 3 . . . . 2 . . . 5 1 . 2 . . . . Analyze 5 | . . . . . . . . . . . . . 1 . . . . . . . . . . . . 1 . . . 1 1 . 1 . . . . Retrieve Study 17 | . . 1 . . . . . . . . . . 1 . . . . . . . 2 . . . . 3 . . . 9 . . 1 . . . . Garrison Access Hacks 12 | . . . . . . 1 . 1 . . 1 . 1 . . . . . 1 . . . . . . 2 . . . 1 1 1 . 1 1 . . Unlock Access 6 | . . . . . . 1 . 1 . . 1 . 1 . . . . . 1 . . . . . . 1 . . . . . . . . . . . Seal Access 6 | . . . . . . . . . . . . . . . . . . . . . . . . . . 1 . . . 1 1 1 . 1 1 . . Unauthorized Hacks 128 | . 6 12 . . . 10 . 4 . 1 2 . 4 . . 4 . . 10 1 5 . . . . 18 . 9 . 9 9 . 3 14 4 3 . Terminals 102 | . 6 10 . . . 10 . 4 . 1 . . 2 . . 4 . . 8 1 1 . . . . 12 . 7 . 5 8 . 3 13 4 3 . Track 23 | . . . . . . . . . . . . . . . . 1 . . 4 . . . . . . 3 . 2 . 1 3 . 1 5 . 3 . Assimilate 11 | . . 1 . . . 2 . 1 . . . . . . . . . . . . . . . . . 2 . 1 . 1 . . . 1 2 . . Botnet 25 | . 2 2 . . . 2 . 1 . 1 . . 1 . . 3 . . 2 1 1 . . . . 1 . 2 . 1 1 . 1 2 1 . . Disrupt 3 | . . . . . . . . . . . . . . . . . . . . . . . . . . . . 1 . . . . 1 . 1 . . Operators 11 | . 1 1 . . . 1 . 1 . . . . 1 . . . . . 1 . . . . . . 1 . 1 . 1 1 . . 1 . . . Skim 28 | . 3 6 . . . 5 . 1 . . . . . . . . . . . . . . . . . 5 . . . 1 3 . . 4 . . . Sabotage 1 | . . . . . . . . . . . . . . . . . . . 1 . . . . . . . . . . . . . . . . . . Fabricators 13 | . . . . . . . . . . . 2 . 2 . . . . . . . 2 . . . . 2 . 2 . 3 . . . . . . . Prioritize 2 | . . . . . . . . . . . . . . . . . . . . . . . . . . . . 1 . 1 . . . . . . . Liberate 6 | . . . . . . . . . . . 1 . 1 . . . . . . . 1 . . . . 1 . 1 . 1 . . . . . . . Haulers 5 | . . . . . . . . . . . 1 . 1 . . . . . . . 1 . . . . 1 . . . 1 . . . . . . . Repair Stations 3 | . . . . . . . . . . . . . . . . . . . . . 2 . . . . 1 . . . . . . . . . . . Patch 3 | . . . . . . . . . . . . . . . . . . . . . 2 . . . . 1 . . . . . . . . . . . Recycling Units 6 | . . 2 . . . . . . . . . . . . . . . . . . . . . . . 3 . . . 1 . . . . . . . Reject 2 | . . . . . . . . . . . . . . . . . . . . . . . . . . 2 . . . . . . . . . . . Mask 2 | . . . . . . . . . . . . . . . . . . . . . . . . . . 1 . . . 1 . . . . . . . Tunnel 2 | . . 2 . . . . . . . . . . . . . . . . . . . . . . . . . . . . . . . . . . . Scanalyzers 2 | . . . . . . . . . . . . . . . . . . . . . . . . . . . . . . . 1 . . 1 . . . Researchers 2 | . . . . . . . . . . . . . . . . . . . . . . . . . . . . . . . 1 . . 1 . . . Garrison Access 2 | . . . . . . . . . . . . . . . . . . . 2 . . . . . . . . . . . . . . . . . . Reprogram 1 | . . . . . . . . . . . . . . . . . . . 1 . . . . . . . . . . . . . . . . . . Watchers 1 | . . . . . . . . . . . . . . . . . . . 1 . . . . . . . . . . . . . . . . . . Data Cores Recovered 5 | . . . . . . . . . . . . . . . . . . . 1 . . . . . . . . . . 1 1 . . . 1 1 . Used 4 | . . . . . . . . . . . . . . . . . . . 1 . . . . . . . . . . 1 . . . . 1 1 . Hacking Detections 133 | . 3 8 . . . 7 2 4 1 3 2 2 4 3 5 10 . . 5 3 5 . . . . 15 2 9 . 9 8 2 2 8 9 2 . Full Trace Events 6 | . . . . . . . 1 . . . . 1 . . . . . . . . . . . . . . 1 1 . 1 1 . . . . . . Feedback Events . | . . . . . . . . . . . . . . . . . . . . . . . . . . . . . . . . . . . . . . Feedback Blocked . | . . . . . . . . . . . . . . . . . . . . . . . . . . . . . . . . . . . . . . Robot Schematics Acquired 54 | . . . . . . . . . . . . . . . . . . . . . . . . . . 54 . . . . . . . . . . . Robots Built 3 | . . . . . . . . . . . . . . . . . . . . . . . . . . . . 3 . . . . . . . . . Authchips . | . . . . . . . . . . . . . . . . . . . . . . . . . . . . . . . . . . . . . . Time 56 | . . . . . . . . . . . . . . . . . . . . . . . . . . . . 56 . . . . . . . . . Total Robot Build Rating 18 | . . . . . . . . . . . . . . . . . . . . . . . . . . . . 18 . . . . . . . . . Part Schematics Acquired 13 | . . . . . . . . . . . . . 1 . . . . . 1 . . . . . . 1 . 1 . 2 3 . 3 1 . . . Parts Built 7 | . . . . . . . . . . . . . . . . . . . . . 4 . . . . . . 1 . 2 . . . . . . . Authchips . | . . . . . . . . . . . . . . . . . . . . . . . . . . . . . . . . . . . . . . Time 334 | . . . . . . . . . . . . . . . . . . . . . 208 . . . . . . 25 . 101 . . . . . . . Total Part Build Rating 55 | . . . . . . . . . . . . . . . . . . . . . 36 . . . . . . 1 . 18 . . . . . . . Part Studies Acquired 16 | . . 1 . . . . . . . . . . . . . . . . . . 2 . . . . 3 . . . 9 . . 1 . . . . Parts Repaired 12 | . . . . . . . . 2 . . . . 1 . . . . . . . . . . . . 3 . . . 4 1 . 1 . . . . Time 680 | . . . . . . . . 100 . . . . 31 . . . . . . . . . . . . 156 . . . 301 24 . 68 . . . . Parts Recycled . | . . . . . . . . . . . . . . . . . . . . . . . . . . . . . . . . . . . . . . Recycled Matter . | . . . . . . . . . . . . . . . . . . . . . . . . . . . . . . . . . . . . . . Retrieved Matter 51 | . . . . . . . . . . . . . . . 51 . . . . . . . . . . . . . . . . . . . . . . Retrieved Components 14 | . 9 . . . . . . . . . . . . . . . . . . . . . . . . 2 . 3 . . . . . . . . . Parts Scanalyzed 5 | . . . . . . . . . . . . . 1 . . . . . . . . . . . . 1 . . . 1 1 . 1 . . . . Part Schematics Acquired 5 | . . . . . . . . . . . . . 1 . . . . . . . . . . . . 1 . . . 1 1 . 1 . . . . Parts Damaged 2 | . . . . . . . . . . . . . . . . . . . . . . . . . . 1 . . . 1 . . . . . . . Bothacking | -11 -10 -9 -9 -9 -8 -8 -8 -8 -8 -8 -7 -7 -6 -6 -6 -6 -6 -6 -6 -6 -5 -5 -5 -5 -4 -4 -4 -4 -4 -3 -3 -2 -2 -2 -1 -1 -1 ------------ Run | Yrd Mat Mat Min Exi Min Mat Gar Mat Gar Mat Fac Gar Fac Gar Fac Ext Cet Arc Hub Gar Fac Upp Upp War Pro Fac Gar Arm Lab Res Tes Res Qua Frg Acc Com Ac0 Used RIF Installer . | . . . . . . . . . . . . . . . . . . . . . . . . . . . . . . . . . . . . . . Robots Hacked 15 | . . . . . . . . . . . . . . . . . . . . . . . . 2 . 2 . . . 4 2 5 . . . . . Non-combat 4 | . . . . . . . . . . . . . . . . . . . . . . . . . . 2 . . . 2 . . . . . . . Combat 11 | . . . . . . . . . . . . . . . . . . . . . . . . 2 . . . . . 2 2 5 . . . . . Robot Hacks Applied 15 | . . . . . . . . . . . . . . . . . . . . . . . . 2 . 2 . . . 4 2 5 . . . . . parse_system 14 | . . . . . . . . . . . . . . . . . . . . . . . . 2 . 1 . . . 4 2 5 . . . . . find_chute 1 | . . . . . . . . . . . . . . . . . . . . . . . . . . 1 . . . . . . . . . . . Relay Couplers Released 126 | . . . . . . . 29 . 7 3 . 16 . 20 3 . . . 6 14 3 . . . . . 24 . . . . 1 . . . . . Machine Destruction 120 | . . . . . . . 29 . 7 3 . 16 . 20 . . . . 3 14 3 . . . . . 24 . . . . 1 . . . . . Programmers 6 | . . . . . . . . . . . . . . . 3 . . . 3 . . . . . . . . . . . . . . . . . . Fabnet Peak Effective % . | . . . . . . . . . . . . . . . . . . . . . . . . . . . . . . . . . . . . . . Robots Rewired 26 | . . . . . . . 8 . . . . . . 1 . 4 . . . 3 1 . . . . 1 3 3 . . 1 . . 1 . . . Allies Hacked 5 | . . . . . . . 3 . . . . . . . . . . . 1 . . . . . . . . 1 . . . . . . . . . Hacks Repelled . | . . . . . . . . . . . . . . . . . . . . . . . . . . . . . . . . . . . . . . Allies | -11 -10 -9 -9 -9 -8 -8 -8 -8 -8 -8 -7 -7 -6 -6 -6 -6 -6 -6 -6 -6 -5 -5 -5 -5 -4 -4 -4 -4 -4 -3 -3 -2 -2 -2 -1 -1 -1 -------- Run | Yrd Mat Mat Min Exi Min Mat Gar Mat Gar Mat Fac Gar Fac Gar Fac Ext Cet Arc Hub Gar Fac Upp Upp War Pro Fac Gar Arm Lab Res Tes Res Qua Frg Acc Com Ac0 Total Allies 57 | . . . . . . 1 9 . . . . . . 1 . 18 5 . 2 5 1 . . . . 2 3 6 . 1 1 . . 2 . . . Largest Group 12 | . . . . . . 1 6 . . . . . . 1 . 12 9 4 6 3 2 . . . . 1 4 3 2 2 1 1 . 1 . . . Highest-Rated Group 480 | . . . . . . 10 60 . . . . . . 32 . 461 480 384 432 143 63 . . . . 58 157 192 128 128 145 135 . 120 . . . Highest-Rated Ally 159 | . . . . . . 10 39 . . . . . . 32 . 159 159 96 96 80 51 . . . . 58 49 64 64 64 145 135 . 120 . . . Initial Warlord ECA Mod 52 | . . . . . . . . 12 12 16 15 15 25 25 35 35 35 35 35 35 42 42 42 42 41 41 41 52 52 51 51 50 50 50 49 49 49 Total Orders 149 | . . . . . . . 5 13 . 1 . . . . . . . 2 4 2 14 . . . . 2 12 4 2 . 4 . . 11 . 3 70 STAY 35 | . . . . . . . 5 1 . . . . . . . . . 1 4 1 1 . . . . 1 7 2 1 . 2 . . 8 . . 1 ROAM 1 | . . . . . . . . . . . . . . . . . . . . . . . . . . . 1 . . . . . . . . . . FOLLOW 22 | . . . . . . . . 1 . . . . . . . . . 1 . 1 . . . . . 1 4 2 1 . 2 . . 3 . . 6 EXPLORE 43 | . . . . . . . . 8 . 1 . . . . . . . . . . 13 . . . . . . . . . . . . . . . 21 RETURN 48 | . . . . . . . . 3 . . . . . . . . . . . . . . . . . . . . . . . . . . . 3 42 Ally Attacks 656 | . . . . . . . 51 . . . . . . 1 . 136 62 18 58 42 11 . . . . . 8 17 . . 13 2 . 6 . 30 201 Total Damage 22500 | . . . . . . . 871 . . . . . . 56 . 2522 1716 739 1796 763 188 . . . . . 223 382 . . 737 132 . 222 . 1884 10269 Kills 82 | . . . . . . . 9 . . . . . . . . 23 7 3 13 6 1 . . . . . . 1 . . 3 . . 2 . 2 12 Allies Corrupted 4 | . . . . . . . . . . . . . . . . . . . 1 . . . . . . . . . . . . . . 1 . 1 1 Allies Melted 4 | . . . . . . . . . . . . . . . . . . . . . . . . 1 . . . . . . . 3 . . . . . Intel | -11 -10 -9 -9 -9 -8 -8 -8 -8 -8 -8 -7 -7 -6 -6 -6 -6 -6 -6 -6 -6 -5 -5 -5 -5 -4 -4 -4 -4 -4 -3 -3 -2 -2 -2 -1 -1 -1 ------- Run | Yrd Mat Mat Min Exi Min Mat Gar Mat Gar Mat Fac Gar Fac Gar Fac Ext Cet Arc Hub Gar Fac Upp Upp War Pro Fac Gar Arm Lab Res Tes Res Qua Frg Acc Com Ac0 Active Infowar (turns) 41120 | 30 1264 1363 814 279 489 824 . 320 1 135 660 198 758 2020 971 1467 393 486 1807 1567 2502 1425 1552 1456 2364 3555 1683 1277 268 1379 1254 1037 302 1815 332 1877 1196 Optics 34687 | . . . . . . . . . . . . 84 758 2020 948 1424 393 486 1733 1567 2502 1425 1552 1456 2364 3555 1683 1277 268 1379 1254 1037 302 1815 332 1877 1196 IFF 7431 | . . . . . . . . . . . . . . . . . . . 270 . 973 1342 1552 696 2342 256 . . . . . . . . . . . Terrain 264 | . . . . . . . . . . . . . . . . . . . . . . . . . . . . . . 264 . . . . . . . Structural 3171 | . . 141 2 . . 59 . 320 1 135 660 . . . . . . . 818 . 1035 . . . . . . . . . . . . . . . . Seismic 4920 | 30 1264 1222 812 279 489 824 . . . . . . . . . . . . . . . . . . . . . . . . . . . . . . . Machine Analysis 130 | . . . . . . . . . . . . . . . 128 . . . . . . . . . . . . . . . 2 . . . . . . Cloaking 7219 | . . . . . . . . . . . . . . . . . . . . . . . . . . 967 20 209 . 415 930 1037 221 1491 332 1491 106 Spoofing 2 | . . . . . . . . . . . . . . . . . . . . 2 . . . . . . . . . . . . . . . . . Jamming 14013 | . . . . . . . . . . . . 174 758 2020 951 1467 136 163 1807 1567 601 . . . . 1521 1632 1216 . . . . . . . . . ID Mask 139 | . . . . . . . . . . . . . . . . . . . . . . . . . . . . 139 . . . . . . . . . Robot Analysis Total 101 | . . . . . . . . . . . . . . . . . . . . . . . . . . 101 . . . . . . . . . . . Derelict Logs Recovered 7 | . . . 2 . . . . . . . . . . . . . . . . . . 2 1 . 2 . . . . . . . . . . . . Drone Launches 97 | . . . . . . . . 7 . 1 . . . . . . . . . . 23 . . . . . . . . . . . . . . 13 53 Drone Recoveries 75 | . . . . . . . . 6 . . . . . . . . . . . . 9 . . . . . . . . . . . . . . 12 48 Exploration | -11 -10 -9 -9 -9 -8 -8 -8 -8 -8 -8 -7 -7 -6 -6 -6 -6 -6 -6 -6 -6 -5 -5 -5 -5 -4 -4 -4 -4 -4 -3 -3 -2 -2 -2 -1 -1 -1 ------------- Run | Yrd Mat Mat Min Exi Min Mat Gar Mat Gar Mat Fac Gar Fac Gar Fac Ext Cet Arc Hub Gar Fac Upp Upp War Pro Fac Gar Arm Lab Res Tes Res Qua Frg Acc Com Ac0 Turns Passed 50319 | 124 1574 2585 1100 279 853 1261 2166 1986 1209 352 661 1415 758 2020 982 1467 393 486 1807 1567 2502 1425 1552 1456 2364 3555 1683 1277 268 1379 1254 1037 302 1815 332 1877 1196 Spaces Moved 30800 | 64 728 1270 636 169 488 574 1050 844 344 198 377 648 371 1026 506 666 156 158 753 702 1072 683 769 646 1045 1844 769 567 171 924 672 1661 527 2061 731 2854 2076 Core 3 | 3 . . . . . . . . . . . . . . . . . . . . . . . . . . . . . . . . . . . . . Treads 16621 | 61 728 1270 636 169 488 574 1050 844 344 198 377 648 371 1026 506 666 156 158 753 702 901 . . 579 1045 925 769 567 . 110 . . . . . . . Legs 2461 | . . . . . . . . . . . . . . . . . . . . . 23 683 769 67 . 919 . . . . . . . . . . . Wheels 1805 | . . . . . . . . . . . . . . . . . . . . . 148 . . . . . . . 171 814 672 . . . . . . Hover 9910 | . . . . . . . . . . . . . . . . . . . . . . . . . . . . . . . . 1661 527 2061 731 2854 2076 Flight . | . . . . . . . . . . . . . . . . . . . . . . . . . . . . . . . . . . . . . . Fastest Speed 30 | 50 160 160 160 160 160 152 150 156 155 156 152 152 160 160 160 160 160 160 160 160 140 190 190 163 163 105 150 150 100 100 140 41 41 30 30 30 34 Average Speed 122 | 154 160 160 160 160 160 156 152 158 155 156 156 159 171 160 160 160 160 172 160 160 172 197 195 168 208 143 164 150 105 123 140 48 41 38 35 36 38 Slowest Speed 400 | 160 160 160 160 160 160 160 160 160 156 156 160 160 240 160 160 160 160 240 160 160 400 260 260 243 245 182 167 232 160 225 140 127 41 43 36 41 113 Overloaded Moves 63 | . . . . . . . . . . . . . . . . . . . . . . . . . . . . . . . . . . 35 9 19 . Propulsion Burnouts . | . . . . . . . . . . . . . . . . . . . . . . . . . . . . . . . . . . . . . . Robots Hopped 2 | . . . . . . . . . . . . . . . . . . . . . . . . . . 2 . . . . . . . . . . . Potential Cave-ins 20 | . . . . . . . . . . . . . . . . . . . . . . . . . . . . . . . . 3 . 17 . . . Cave-ins Triggered 1 | . . 1 . . . . . . . . . . . . . . . . . . . . . . . . . . . . . . . . . . . Teleports 3 | . . . . . . . . . . . . . . . . . . . . . . . . . . . . . . . . . . 1 . 1 1 Exploration Rate (%) 61 | 5 63 82 98 55 97 43 93 52 34 26 16 78 16 90 16 85 60 81 75 85 40 83 86 81 96 47 83 43 93 29 86 36 48 46 29 55 98 Regions Visited 37 Branch Regions 18 Pre-discovered Areas 8 | . . 4 1 1 . . . . . . . . . . . . . . . . . 1 . . 1 . . . . . . . . . . . . Known Exits Taken 17 | . . 1 . . 1 1 . 1 . 1 1 . 1 . . . . . 1 . . . 1 . 1 1 . . 1 1 1 1 . 1 1 . . Unknown Exits Taken 14 | 1 1 . 1 1 . . . . . . . . . . 1 1 1 1 . . 1 1 . 1 . . . 1 . . . . 1 . . 1 . Scrap Searched 9 | . . . 1 . 1 . . . . . . . . . . . . . . . . 3 2 . 2 . . . . . . . . . . . . Spaces Dug 540 | . 10 22 24 . . 11 24 9 21 4 6 4 4 6 3 2 . . 14 5 29 . 2 . 9 47 4 45 . 25 38 1 3 130 9 25 4 Terrain Destroyed 1339 | . 14 56 45 . 22 28 70 75 23 4 6 14 25 22 18 39 3 3 21 16 232 3 2 2 35 103 85 95 . 34 53 1 3 134 9 26 18 Melee 144 | . . 9 . . . 11 24 9 15 4 6 1 . . . . . . . . . . 2 . . . . . . . . . . 26 9 25 3 Projectile 530 | . 11 3 . . . . 1 21 1 . . 10 11 17 18 25 3 3 10 12 51 3 . 2 22 82 8 60 . 34 25 1 3 92 . . 1 AOE 648 | . 3 44 45 . 22 17 45 45 7 . . 3 14 5 . 14 . . 11 4 181 . . . 13 21 77 35 . . 28 . . 14 . . . Terrain Rammed . | . . . . . . . . . . . . . . . . . . . . . . . . . . . . . . . . . . . . . . Walls Destroyed . | . . . . . . . . . . . . . . . . . . . . . . . . . . . . . . . . . . . . . . Machines Disabled . | . . . . . . . . . . . . . . . . . . . . . . . . . . . . . . . . . . . . . . Actions | -11 -10 -9 -9 -9 -8 -8 -8 -8 -8 -8 -7 -7 -6 -6 -6 -6 -6 -6 -6 -6 -5 -5 -5 -5 -4 -4 -4 -4 -4 -3 -3 -2 -2 -2 -1 -1 -1 --------- Run | Yrd Mat Mat Min Exi Min Mat Gar Mat Gar Mat Fac Gar Fac Gar Fac Ext Cet Arc Hub Gar Fac Upp Upp War Pro Fac Gar Arm Lab Res Tes Res Qua Frg Acc Com Ac0 Total 39657 | 82 942 1646 682 176 529 778 1371 1288 909 225 427 879 458 1245 592 897 264 284 1309 966 1444 745 806 983 1150 2421 1042 807 257 1080 888 1880 594 2797 783 3657 2374 Wait 4063 | 1 72 190 10 . 12 67 83 267 483 9 8 43 34 48 11 100 57 39 511 109 50 9 6 252 43 175 132 53 28 16 38 147 24 286 15 611 24 Move 30758 | 63 727 1269 635 168 487 574 1049 844 343 197 377 647 371 1025 505 665 155 157 752 701 1071 682 768 645 1044 1839 768 566 170 923 671 1660 525 2058 730 2852 2075 Hop 2 | . . . . . . . . . . . . . . . . . . . . . . . . . . 2 . . . . . . . . . . . Pick Up 486 | 8 12 27 2 1 5 15 8 11 8 1 6 13 5 7 8 6 9 5 3 18 37 13 5 15 5 44 5 16 18 17 15 12 5 63 1 21 16 Fast Attach 178 | 6 . 3 . 2 1 . 6 3 2 . . 16 2 3 1 . 2 7 . 4 10 3 . 3 2 33 8 4 1 7 12 9 3 9 . 3 13 Attach 237 | 1 . 5 . . 3 6 9 1 5 1 2 5 4 2 4 5 5 6 . 7 34 4 1 2 4 19 3 5 10 11 7 6 1 18 2 16 23 Detach 80 | . . 1 . . . . 2 . 1 . . 6 1 . 3 1 1 5 . . 10 2 1 4 . 5 . . 3 3 6 . 2 4 . 5 14 Swap 759 | 1 19 31 12 3 5 24 31 44 8 9 12 25 12 19 15 19 8 5 17 22 54 11 8 19 13 58 20 26 5 33 34 12 6 58 8 29 24 Drop 494 | . 14 24 2 2 1 10 9 15 3 1 10 36 4 4 7 3 10 6 3 13 19 11 5 17 1 47 12 13 15 18 25 24 9 61 . 19 21 Fire 1949 | 2 98 81 16 . 13 65 84 70 40 1 3 47 25 135 36 69 17 54 16 84 143 10 10 17 38 184 84 105 7 52 80 10 18 167 4 1 63 Melee 418 | . . 14 . . 2 17 36 26 16 5 8 19 . . . . . . . . . . 2 . . . . . . . . . . 51 23 99 100 Ram . | . . . . . . . . . . . . . . . . . . . . . . . . . . . . . . . . . . . . . . Kick 7 | . . . . . . . . . . . . . . . . . . . . . . . . . . 7 . . . . . . . . . . . Crush 31 | . . 1 5 . . . . 7 . 1 1 . . . 2 3 . . 6 1 1 . . . . 3 . . . . . . . . . . . Escape Stasis 23 | . . . . . . . . . . . . . . . . . . . . . . . . . . . . . . . . . 1 21 . 1 . Rewire 119 | . . . . . . . 42 . . . . . . 2 . 26 . . 1 7 9 . . . . 1 10 19 . . . . . 1 . . 1 Trap 8 | . . . . . . . . . . . . 4 . . . . . . . . . . . . . 4 . . . . . . . . . . . Miscellaneous 45 | . . . . . . . 12 . . . . 18 . . . . . . . . 6 . . 9 . . . . . . . . . . . . . Route ------- -11/Scrapyard -10/Materials (discovered 4 exits: *Mat / [*Min x2] / [*Sub]) -9/Materials (discovered 5 exits: *Mat x3 / *Min x2) -9/Mines (discovered 3 exits: *Mat x2 / *Exi) -9/Exiles -8/Mines (discovered 2 exits: *Mat x2) -8/Materials (discovered 5 exits: Fac x3 / [*Sto] / Gar) -8/Garrison (discovered 3 exits: *Mat x3) -8/Materials (discovered 4 exits: *Fac / [*Sto x2] / Gar) -8/Garrison -8/Materials (discovered 4 exits: *Fac x3 / [*Sto]) -7/Factory -7/Garrison (discovered 3 exits: *Fac x3) -6/Factory (discovered 2 exits: *Low / Gar) -6/Garrison (discovered 3 exits: *Fac x3) -6/Factory (discovered 2 exits: *Low / *Ext) -6/Extension (discovered 2 exits: *Fac / *Cet) -6/Cetus (discovered 2 exits: *Fac / [*Arc]) -6/Archives (discovered 3 exits: *Fac / *Hub x2) -6/Hub_04(d) (discovered 3 exits: *Fac x2 / Gar) -6/Garrison (discovered 3 exits: *Fac x3) -5/Factory (discovered 5 exits: *Fac x4 / *Upp) -5/Upper Caves -5/Upper Caves (discovered 2 exits: *Fac / *War) -5/Warlord -4/Proximity Caves -4/Factory (discovered 7 exits: *Res x3 / *Upp x2 / Arm / Gar) -4/Garrison (discovered 3 exits: *Arm x3) -4/Armory -4/Lab -3/Research (discovered 3 exits: *Res / *Tes x2) -3/Testing -2/Research (discovered 2 exits: *Qua x2) -2/Quarantine (discovered 3 exits: *Acc / [*Sec] / *Frg) -2/Protoforge -1/Access -1/Command (discovered 3 exits: [*Sur x2] / *Ac0) -1/Access_0 0b11 Command History --------- Turn | Location | Event 8 | -11/Scrapyard | Discovered new exit (range 15) 125 | -11/Scrapyard | Entered Materials 317 | -10/Materials | Build established: Mutant 782 | -10/Materials | Discovered new exit (range 7) 1094 | -10/Materials | Discovered new exit (range 6) 1282 | -10/Materials | Discovered new exit (range 6) 1345 | -10/Materials | Core integrity fell below 50% 1587 | -10/Materials | Core integrity fell below 20% 1641 | -10/Materials | Discovered new exit (range 10) 1699 | -10/Materials | Entered another Materials area 1699 | -9/Materials | Evolved 2 slots: Propulsion x1, Utility x1 2337 | -9/Materials | Discovered new exit (range 9) 2743 | -9/Materials | Discovered new exit (range 12) 2746 | -9/Materials | Identified exit to Mines 2879 | -9/Materials | Learned 2 Storage zone layouts 2961 | -9/Materials | Learned Storage security intel 3031 | -9/Materials | Learned location of 1 exit from Storage 3141 | -9/Materials | Learned location of Zion (-6) 3179 | -9/Materials | Identified exit to Materials 3242 | -9/Materials | Loaded intel: 23 trap records 3289 | -9/Materials | Loaded intel: 2 repair station locations 3348 | -9/Materials | Learned location of 1 exit from Recycling 3519 | -9/Materials | Crushed by falling debris 3925 | -9/Materials | Central database locked down 4284 | -9/Materials | Entered Mines 4327 | -9/Mines | Learned Materials terminal intel 4357 | -9/Mines | Learned location of Storage (-8) 4401 | -9/Mines | Learned Materials emergency access door positions 4639 | -9/Mines | Deemed a non-threat by the Exiles lab entrance 4641 | -9/Mines | Discovered new exit (range 5) 4687 | -9/Mines | Discovered exit to Materials (range 8) 4741 | -9/Mines | Build established: Scavenger-Mutant 5216 | -9/Mines | Discovered exit to Materials (range 14) 5384 | -9/Mines | Entered Exiles 5423 | -9/Exiles | Met 8R-AWN 5450 | -9/Exiles | Met EX-HEX 5561 | -9/Exiles | Met EX-DEC 5645 | -9/Exiles | Discovered new exit (range 10) 5663 | -9/Exiles | Entered Mines 5668 | -8/Mines | System corruption reached 10% 5708 | -8/Mines | Lost 3 parts (1p1u1w) 5948 | -8/Mines | Build established: Mutant 6283 | -8/Mines | Discovered exit to Materials (range 14) 6484 | -8/Mines | Discovered exit to Materials (range 6) 6516 | -8/Mines | Entered Materials 6516 | -8/Materials | Evolved 2 slots: Propulsion x1, Utility x1 6518 | -8/Materials | Loaded intel: 11 terminal locations 6820 | -8/Materials | Build established: Scavenger-Mutant 7205 | -8/Materials | Discovered new exit (range 12) 7269 | -8/Materials | Discovered new exit (range 14) 7311 | -8/Materials | Learned Storage garrison access intel 7361 | -8/Materials | Identified exit to Factory 7399 | -8/Materials | Learned Factory interactive machine intel 7426 | -8/Materials | Learned location of 2 exits from Lower Caves 7444 | -8/Materials | Learned Factory trap positions 7472 | -8/Materials | Learned 2 Storage zone layouts 7638 | -8/Materials | Build established: Mutant 7777 | -8/Materials | Identified exit to Garrison 7777 | -8/Materials | Entered Garrison 7843 | -8/Garrison | Triggered checkpoint 7863 | -8/Garrison | Triggered checkpoint 7916 | -8/Garrison | Garrison Relay disabled 7925 | -8/Garrison | Destroyed 7 combat bots 7931 | -8/Garrison | Lost 3 parts (2u1w) 7938 | -8/Garrison | Garrison Relay disabled 8373 | -8/Garrison | Triggered checkpoint 8377 | -8/Garrison | Triggered checkpoint 8427 | -8/Garrison | Lost 3 allies 8454 | -8/Garrison | Discovered new exit (range 10) 8503 | -8/Garrison | Triggered checkpoint 8567 | -8/Garrison | Lost 3 allies 8603 | -8/Garrison | Garrison Relay disabled 8687 | -8/Garrison | Triggered checkpoint 8790 | -8/Garrison | Discovered new exit (range 10) 8824 | -8/Garrison | Triggered checkpoint 8872 | -8/Garrison | Garrison Relay disabled 9136 | -8/Garrison | Core integrity fell below 50% 9147 | -8/Garrison | Triggered checkpoint 9191 | -8/Garrison | Rescued a captive Derelict 9252 | -8/Garrison | Discovered new exit (range 13) 9303 | -8/Garrison | Phase Generator disabled 9390 | -8/Garrison | Garrison Relay disabled 9555 | -8/Garrison | Garrison Relay disabled 9559 | -8/Garrison | Garrison Relay disabled 9800 | -8/Garrison | Build established: Scavenger-Mutant 9943 | -8/Garrison | Entered Materials 9977 | -8/Materials | Discovered new exit (range 41) 10743 | -8/Materials | First assault squad dispatched 10808 | -8/Materials | Destroyed 7 combat bots 11319 | -8/Materials | Discovered exit to Factory (range 5) 11427 | -8/Materials | Core integrity fell below 20% 11483 | -8/Materials | Discovered new exit (range 13) 11561 | -8/Materials | Repaired Imp. Medium Treads? 11816 | -8/Materials | Repaired Adv. Heat Sink 11929 | -8/Materials | Identified exit to Garrison 11929 | -8/Materials | Entered Garrison 11997 | -8/Garrison | Triggered checkpoint 12026 | -8/Garrison | Garrison Relay disabled 12112 | -8/Garrison | Triggered checkpoint 12144 | -8/Garrison | System corruption reached 10% 12168 | -8/Garrison | Lost 3 parts (1p1n1w) 12223 | -8/Garrison | Build established: Mutant 12287 | -8/Garrison | Learned Materials security intel 12346 | -8/Garrison | Garrison Relay disabled 12480 | -8/Garrison | Discovered new exit (range 5) 13138 | -8/Garrison | Entered Materials 13147 | -8/Materials | Discovered new exit (range 17) 13418 | -8/Materials | Met 7R-MNS 13490 | -8/Materials | Entered Factory 13490 | -7/Factory | Evolved 2 slots: Utility x1, Weapon x1 13491 | -7/Factory | Caught up to 7R-MNS 13491 | -7/Factory | Loaded intel: 85 trap records 13492 | -7/Factory | Loaded intel: 52 interactive machine locations 13796 | -7/Factory | Build established: Scavenger-Tank 14150 | -7/Factory | Identified exit to Garrison 14151 | -7/Factory | Entered Garrison 14183 | -7/Garrison | Triggered checkpoint 14253 | -7/Garrison | Discovered new exit (range 37) 14253 | -7/Garrison | Discovered new exit (range 75) 14253 | -7/Garrison | Discovered new exit (range 70) 14259 | -7/Garrison | Garrison Relay disabled 14529 | -7/Garrison | Phase Generator disabled 15061 | -7/Garrison | Garrison Relay disabled 15189 | -7/Garrison | Triggered checkpoint 15237 | -7/Garrison | Triggered checkpoint 15253 | -7/Garrison | Heavy support dispatched to Factory 15289 | -7/Garrison | Garrison Relay disabled 15343 | -7/Garrison | Triggered checkpoint 15428 | -7/Garrison | H-XX Assembler disabled 15566 | -7/Garrison | Entered Factory 15566 | -6/Factory | Evolved 2 slots: Utility x2 15722 | -6/Factory | Repaired Imp. Heavy Treads 15817 | -6/Factory | Build established: Tank 15854 | -6/Factory | Discovered new exit (range 5) 15916 | -6/Factory | First assault squad dispatched 16324 | -6/Factory | Identified exit to Garrison 16324 | -6/Factory | Entered Garrison 16374 | -6/Garrison | Triggered checkpoint 16393 | -6/Garrison | Garrison Relay disabled 16586 | -6/Garrison | Triggered checkpoint 17120 | -6/Garrison | Discovered new exit (range 14) 17198 | -6/Garrison | Triggered checkpoint 17210 | -6/Garrison | Garrison Relay disabled 17231 | -6/Garrison | Garrison Relay disabled 17293 | -6/Garrison | Triggered checkpoint 17376 | -6/Garrison | Triggered checkpoint 17386 | -6/Garrison | Garrison Relay disabled 17470 | -6/Garrison | Discovered new exit (range 13) 17544 | -6/Garrison | Triggered checkpoint 17644 | -6/Garrison | Discovered new exit (range 16) 17652 | -6/Garrison | Phase Generator disabled 17820 | -6/Garrison | Triggered checkpoint 17837 | -6/Garrison | Garrison Relay disabled 18066 | -6/Garrison | Triggered checkpoint 18344 | -6/Garrison | Entered Factory 18700 | -6/Factory | Build established: Hacker-Tank 18912 | -6/Factory | Discovered new exit (range 19) 19143 | -6/Factory | Identified exit to Lower Caves 19318 | -6/Factory | Discovered new exit (range 6) 19326 | -6/Factory | Entered Extension 19500 | -6/Extension | Rescued a captive Derelict 19734 | -6/Extension | Spotted B-75 Beast 19764 | -6/Extension | Destroyed B-75 Beast 19781 | -6/Extension | Spotted B-75 Beast 19803 | -6/Extension | Destroyed B-75 Beast 19914 | -6/Extension | Build established: Tank 19940 | -6/Extension | Rescued a captive Derelict 19941 | -6/Extension | Rescued a captive Derelict 19966 | -6/Extension | Rescued a captive Derelict 20008 | -6/Extension | Rescued a captive Derelict 20039 | -6/Extension | Rescued a captive Derelict 20045 | -6/Extension | Rescued a captive Derelict 20301 | -6/Extension | Disrupted transfer network 20376 | -6/Extension | First assault squad dispatched 20387 | -6/Extension | Rescued a captive Derelict 20522 | -6/Extension | Lost 5 allies 20550 | -6/Extension | Rescued a captive Derelict 20573 | -6/Extension | Rescued a captive Derelict 20575 | -6/Extension | Rescued a captive Derelict 20577 | -6/Extension | Rescued A7 20640 | -6/Extension | Rescued a captive Derelict 20657 | -6/Extension | Rescued a captive Derelict 20715 | -6/Extension | Discovered new exit (range 13) 20720 | -6/Extension | Discovered new exit (range 7) 20746 | -6/Extension | Disrupted transfer network 20780 | -6/Extension | Lost 3 allies 20793 | -6/Extension | Entered Cetus 20793 | -6/Cetus | Accompanied by 9 allies (A7) 20798 | -6/Cetus | Acquired a Cetus Manufacturing Module code from A7 20812 | -6/Cetus | Spotted Cetus Guard 20812 | -6/Cetus | Spotted Cetus Guard 20822 | -6/Cetus | Spotted Cetus Guard 20831 | -6/Cetus | Spotted Cetus Guard 20834 | -6/Cetus | Allies destroyed Cetus Guard 20845 | -6/Cetus | Destroyed Cetus Guard 20852 | -6/Cetus | Found Prototype Protection 20853 | -6/Cetus | Extracted ID and sensor layout for unrecognized location from A7's data core 20867 | -6/Cetus | Allies destroyed Cetus Guard 20869 | -6/Cetus | Identified Med. Regenerative Plating 20891 | -6/Cetus | Lost 8 allies 20929 | -6/Cetus | Started Cetus Manufacturing Module 20939 | -6/Cetus | Discovered new exit (range 22) 20954 | -6/Cetus | Manufactured an Enhanced Grunt 20979 | -6/Cetus | Manufactured an Enhanced Grunt 21004 | -6/Cetus | Manufactured an Enhanced Grunt 21022 | -6/Cetus | Spotted Cetus Guard 21029 | -6/Cetus | Manufactured an Enhanced Grunt 21044 | -6/Cetus | Spotted Cetus Guard 21044 | -6/Cetus | Spotted Cetus Guard 21049 | -6/Cetus | Destroyed Cetus Guard 21052 | -6/Cetus | Spotted Cetus Guard 21054 | -6/Cetus | Manufactured an Enhanced Grunt 21058 | -6/Cetus | Allies destroyed Cetus Guard 21059 | -6/Cetus | Allies destroyed Cetus Guard 21069 | -6/Cetus | Allies destroyed Cetus Guard 21097 | -6/Cetus | Discovered new exit (range 22) 21114 | -6/Cetus | Met Revision 17 21142 | -6/Cetus | Build established: Scavenger-Tank 21186 | -6/Cetus | Entered Archives 21186 | -6/Archives | Accompanied by 4 allies 21238 | -6/Archives | Discovered new exit (range 22) 21244 | -6/Archives | Discovered new exit (range 19) 21307 | -6/Archives | Discovered new exit (range 21) 21672 | -6/Archives | Entered Hub_04(d) 21672 | -6/Hub_04(d) | Accompanied by 4 allies 21708 | -6/Hub_04(d) | Identified exit to Garrison 21933 | -6/Hub_04(d) | Discovered new exit (range 15) 22330 | -6/Hub_04(d) | Discovered new exit (range 2) 22529 | -6/Hub_04(d) | P-70 Sage assimilated hostile W-25 Informer 22922 | -6/Hub_04(d) | Network Hub disabled 23003 | -6/Hub_04(d) | Network Hub disabled 23460 | -6/Hub_04(d) | Network Hub disabled 23479 | -6/Hub_04(d) | Entered Garrison 23500 | -6/Garrison | Found embedded Infiltrators 23507 | -6/Garrison | Learned Factory security intel 23531 | -6/Garrison | Triggered checkpoint 23588 | -6/Garrison | Garrison Relay disabled 23813 | -6/Garrison | Spotted B-75 Beast 23814 | -6/Garrison | Triggered checkpoint 23816 | -6/Garrison | Triggered checkpoint 23830 | -6/Garrison | Core integrity fell below 50% 23860 | -6/Garrison | Lost 3 parts (2n1w) 23890 | -6/Garrison | Destroyed B-75 Beast 23957 | -6/Garrison | Triggered checkpoint 24077 | -6/Garrison | Triggered checkpoint 24148 | -6/Garrison | Garrison Relay disabled 24317 | -6/Garrison | Discovered new exit (range 10) 24403 | -6/Garrison | Triggered checkpoint 24418 | -6/Garrison | Discovered new exit (range 8) 24453 | -6/Garrison | Triggered checkpoint 24493 | -6/Garrison | Garrison Relay disabled 24777 | -6/Garrison | Discovered new exit (range 12) 24777 | -6/Garrison | Discovered new exit (range 66) 24777 | -6/Garrison | Discovered new exit (range 31) 24873 | -6/Garrison | Triggered checkpoint 24896 | -6/Garrison | Garrison Relay disabled 25046 | -6/Garrison | Entered Factory 25046 | -5/Factory | Accompanied by 1 ally 25046 | -5/Factory | Evolved 2 slots: Power x1, Utility x1 25133 | -5/Factory | Spotted B-75 Beast 25325 | -5/Factory | Discovered new exit (range 3) 25344 | -5/Factory | Fabricated Quantum Reactor? 25646 | -5/Factory | First assault squad dispatched 25692 | -5/Factory | Destroyed 8 combat bots 25695 | -5/Factory | Lost 4 parts (2n1u1w) 25822 | -5/Factory | Cargo convoy interrupted 25917 | -5/Factory | Fabricated Lgt. Quantum Reactor? 25957 | -5/Factory | Destroyed 7 combat bots 26648 | -5/Factory | Lost 7 allies 26664 | -5/Factory | System corruption reached 10% 26740 | -5/Factory | Destroyed 12 combat bots 26796 | -5/Factory | Identified exit to Factory 27063 | -5/Factory | Core integrity fell below 50% 27138 | -5/Factory | Lost 9 parts (1p2n3u3w) 27258 | -5/Factory | Found Prototype Processor 27258 | -5/Factory | Identified Exp. Targeting Computer 27324 | -5/Factory | Discovered new exit (range 21) 27447 | -5/Factory | Build established: Scavenger-Mutant 27548 | -5/Factory | Entered Upper Caves 27714 | -5/Upper Caves | Met a Warlord Commander 27715 | -5/Upper Caves | Learned location of Warlord (-5) 27716 | -5/Upper Caves | Warlord Commander delivered Encrypted Comm Array 27722 | -5/Upper Caves | Found Unknown Device 27723 | -5/Upper Caves | Identified Encrypted Comm Array 27753 | -5/Upper Caves | Learned 4 Factory zone layouts 27791 | -5/Upper Caves | Encountered a Warlord checkpoint 28043 | -5/Upper Caves | Learned location of 1 exit from Proximity Caves 28323 | -5/Upper Caves | Build established: Scavenger-Skirmisher 28686 | -5/Upper Caves | Discovered new exit (range 6) 28973 | -5/Upper Caves | Entered another Upper Caves area 28989 | -5/Upper Caves | Encountered a Warlord checkpoint 29365 | -5/Upper Caves | Discovered exit to Factory (range 5) 30091 | -5/Upper Caves | Identified exit to Warlord 30469 | -5/Upper Caves | Build established: Scavenger-Mutant 30525 | -5/Upper Caves | Entered Warlord 30591 | -5/Warlord | System corruption cleaned by Quarantine Array 30853 | -5/Warlord | Found Prototype Device 30865 | -5/Warlord | Found Prototype Hackware 30870 | -5/Warlord | Identified Ghost Barrier 30885 | -5/Warlord | Found Prototype Device 30892 | -5/Warlord | Found Prototype Reactor 30962 | -5/Warlord | Identified Exp. Cloaking Device 30985 | -5/Warlord | Identified Vortex Chain Reactor 30987 | -5/Warlord | Identified Thermal Barrier 31096 | -5/Warlord | Met Warlord 31121 | -5/Warlord | Warlord's base attacked by MAIN.C 31156 | -5/Warlord | Build established: Scavenger-Tank 31331 | -5/Warlord | Found Prototype Energy Gun 31331 | -5/Warlord | Identified Vortex Rifle 31335 | -5/Warlord | Found Vortex Rifle 31339 | -5/Warlord | Found Prototype Piercing Weapon 31342 | -5/Warlord | Found Vortex Rifle 31347 | -5/Warlord | Found Vortex Rifle 31351 | -5/Warlord | Identified Vortex Lance 31357 | -5/Warlord | Found Vortex Lance 31466 | -5/Warlord | Spotted Striker 31471 | -5/Warlord | Warlord forces counterattacked 31556 | -5/Warlord | Spotted Striker 31582 | -5/Warlord | P-70 Sage assimilated allied ZT-P6U(g) 31588 | -5/Warlord | P-70 Sage assimilated allied MF-OOO(b) 31638 | -5/Warlord | Lost 23 allies 31649 | -5/Warlord | Spotted Striker 31696 | -5/Warlord | Lost 6 allies 31796 | -5/Warlord | Warlord base infiltrated, sounded retreat 31852 | -5/Warlord | Lost 7 allies 31891 | -5/Warlord | Spotted Executioner 31894 | -5/Warlord | Destroyed Executioner 31915 | -5/Warlord | Lost 3 allies 31926 | -5/Warlord | Spotted Striker 31926 | -5/Warlord | Spotted B-86 Titan 31955 | -5/Warlord | Discovered new exit (range 17) 31981 | -5/Warlord | Entered Proximity Caves 32525 | -4/Proximity Caves | Learned Research trap positions 32790 | -4/Proximity Caves | Attracted the attention of an 0b10 outpost 33317 | -4/Proximity Caves | Build established: Scavenger-Mutant 33375 | -4/Proximity Caves | Spotted B-86 Titan 34345 | -4/Proximity Caves | Entered Factory 34345 | -4/Factory | Evolved 2 slots: Propulsion x2 34346 | -4/Factory | Identified exit to Research 34474 | -4/Factory | Identified exit to Upper Caves 34474 | -4/Factory | Identified exit to Armory 34949 | -4/Factory | Repaired Broken Centrium Heavy Treads? 34959 | -4/Factory | Unchained authorized (CL-0N3) 35000 | -4/Factory | Build established: Scavenger-Gunner 35252 | -4/Factory | Spotted B-86 Titan 35254 | -4/Factory | Destroyed B-86 Titan 35315 | -4/Factory | Spotted Quarantine Guard 35358 | -4/Factory | Destroyed Quarantine Guard 35358 | -4/Factory | Quarantine Guard reconstituted as CL-0N3 35513 | -4/Factory | Lost 3 parts (1u2w) 35712 | -4/Factory | W-44 Eye reconstituted as Executioner 35712 | -4/Factory | Spotted Executioner 35732 | -4/Factory | Destroyed Executioner 35732 | -4/Factory | Executioner reconstituted as CL-0N3 35962 | -4/Factory | U-05 Engineer reconstituted as Cetus Guard 35962 | -4/Factory | Spotted Cetus Guard 35979 | -4/Factory | Destroyed Cetus Guard 35979 | -4/Factory | Cetus Guard reconstituted as CL-0N3 35993 | -4/Factory | Learned Research fabricator intel 36049 | -4/Factory | Learned Testing emergency access door positions 36094 | -4/Factory | Learned Testing scanalyzer intel 36097 | -4/Factory | Build established: Scavenger-Tank 36128 | -4/Factory | Learned 2 Upper Caves zone layouts 36189 | -4/Factory | Learned Armory non-interactive machine intel 36214 | -4/Factory | R-10 Processor reconstituted as Executioner 36216 | -4/Factory | Spotted Executioner 36222 | -4/Factory | Learned Research fabricator intel 36222 | -4/Factory | System corruption reached 10% 36239 | -4/Factory | Destroyed Executioner 36239 | -4/Factory | Executioner reconstituted as CL-0N3 36542 | -4/Factory | P-70 Sage reconstituted as Thunder 36551 | -4/Factory | Destroyed Thunder 36551 | -4/Factory | Thunder reconstituted as CL-0N3 36996 | -4/Factory | K-01 Serf reconstituted as D-83 Annihilator 37013 | -4/Factory | D-83 Annihilator reconstituted as CL-0N3 37013 | -4/Factory | Destroyed CL-0N3 37034 | -4/Factory | Found ID Mask 37035 | -4/Factory | Extracted schematics, analyses from CL-0N3's data core 37042 | -4/Factory | Found Prototype Hover Unit 37451 | -4/Factory | Repaired Centrium Medium Armor Plating? 37475 | -4/Factory | Discovered exit to Research (range 7) 37641 | -4/Factory | Repaired Com. HERF Cannon+? 37896 | -4/Factory | Identified exit to Garrison 37900 | -4/Factory | Entered Garrison 37900 | -4/Garrison | Accompanied by 1 ally 37929 | -4/Garrison | Triggered checkpoint 37964 | -4/Garrison | Triggered checkpoint 37988 | -4/Garrison | Garrison Relay disabled 38190 | -4/Garrison | Triggered checkpoint 38244 | -4/Garrison | Lost 3 allies 38292 | -4/Garrison | Triggered checkpoint 38344 | -4/Garrison | Destroyed 7 combat bots 38462 | -4/Garrison | Triggered checkpoint 38516 | -4/Garrison | Build established: Tank 38605 | -4/Garrison | Discovered exit to Armory (range 18) 38736 | -4/Garrison | Triggered checkpoint 38812 | -4/Garrison | Garrison Relay disabled 38863 | -4/Garrison | Triggered checkpoint 38912 | -4/Garrison | Garrison Relay disabled 39121 | -4/Garrison | Phase Generator disabled 39124 | -4/Garrison | Discovered exit to Armory (range 9) 39218 | -4/Garrison | Learned Armory security intel 39272 | -4/Garrison | Triggered checkpoint 39282 | -4/Garrison | Garrison Relay disabled 39357 | -4/Garrison | Spotted B-86 Titan 39478 | -4/Garrison | Garrison Relay disabled 39583 | -4/Garrison | Entered Armory 39585 | -4/Armory | Loaded intel: 73 non-interactive machine locations 39630 | -4/Armory | ID Mask engaged 39649 | -4/Armory | Fabricated Hcp. Storage Unit (x1) 39754 | -4/Armory | Unchained authorized (6S-H0T) 39769 | -4/Armory | ID Mask no longer valid 39784 | -4/Armory | Fabricated B-60 Warrior? 39936 | -4/Armory | Core integrity fell below 50% 39959 | -4/Armory | Destroyed 10 combat bots 40818 | -4/Armory | Identified CL-0N3's Metamass Displacer 40822 | -4/Armory | Discovered new exit (range 5) 40833 | -4/Armory | First assault squad dispatched 40860 | -4/Armory | Entered Lab 40860 | -4/Lab | Accompanied by 2 allies 40870 | -4/Lab | Discovered exit to Research (range 9) 40887 | -4/Lab | Hidden lab's door opened automatically 40887 | -4/Lab | Sensor layout match revealed 40888 | -4/Lab | Gained access to the hidden lab's interior 40921 | -4/Lab | Found Alien Artifact 40945 | -4/Lab | Found Alien Artifact 40956 | -4/Lab | Found Alien Artifact 40957 | -4/Lab | Identified Integrated Mediator 40957 | -4/Lab | Installed Integrated Mediator, increased core attachment efficiency 40968 | -4/Lab | Found Alien Artifact 40992 | -4/Lab | Found Prototype Hackware 40995 | -4/Lab | Found Prototype Protection 40998 | -4/Lab | Found Prototype Energy Gun 41001 | -4/Lab | Found Prototype Energy Cannon 41040 | -4/Lab | Identified Warp Cannon 41054 | -4/Lab | Found Prototype Special Weapon 41086 | -4/Lab | Identified Hyp. EM Gauss Rifle 41094 | -4/Lab | Identified Exp. Powered Armor 41100 | -4/Lab | Identified Gui. Remote Datajack 41118 | -4/Lab | Identified Deep Network Scanner 41128 | -4/Lab | Entered Research 41128 | -3/Research | Accompanied by 2 allies 41128 | -3/Research | Evolved 2 slots: Propulsion x1, Utility x1 41129 | -3/Research | Loaded intel: 76 trap records 41130 | -3/Research | Loaded intel: 4 fabricator locations 41219 | -3/Research | Repaired Biometal Heavy Treads? 41238 | -3/Research | Identified exit to Testing 41335 | -3/Research | Revision forces began assault on 0b10 41340 | -3/Research | Met up with Revision 17++ 41354 | -3/Research | Repaired Com. HERF Cannon+ 41388 | -3/Research | Identified Core Expander 41388 | -3/Research | Identified Core Reset Matrix 41388 | -3/Research | Identified Transdimensional Reconstructor 41411 | -3/Research | Repaired Adv. Cooling System? 41539 | -3/Research | Build established: Hacker-Tank 41580 | -3/Research | Repaired Broken Cmb. Linear Gravjet+? 41593 | -3/Research | Installed Core Expander, added new Utility slot 41742 | -3/Research | Found Fusion Bomb Launcher 41831 | -3/Research | Fabricated Enh. Nova Cannon (x2) 41835 | -3/Research | Research terminal network offline 41974 | -3/Research | Fabricated Vortex Chain Reactor? 42039 | -3/Research | Discovered new exit (range 20) 42347 | -3/Research | Found Spectral Analyzer 42373 | -3/Research | Found Prototype Processor 42373 | -3/Research | Identified Exp. Core Analyzer 42377 | -3/Research | Spotted Executioner 42379 | -3/Research | Destroyed Executioner 42418 | -3/Research | Spotted Striker 42419 | -3/Research | Spotted Striker 42440 | -3/Research | Destroyed Striker 42447 | -3/Research | Destroyed Striker 42480 | -3/Research | Spotted Striker 42482 | -3/Research | Spotted Striker 42483 | -3/Research | Destroyed Striker 42487 | -3/Research | P-80 Master assimilated allied Archangel 7a 42502 | -3/Research | Spotted Striker 42507 | -3/Research | Entered Testing 42509 | -3/Testing | Loaded intel: 3 scanalyzer locations 42531 | -3/Testing | Protovariant out of control (PL-2HIFVC3YAT) 42534 | -3/Testing | Found Prototype Ballistic Cannon 42534 | -3/Testing | Identified Perforator 42633 | -3/Testing | Found Prototype Energy Cannon 42633 | -3/Testing | Identified Hpw. Disruptor Cannon 42680 | -3/Testing | Identified exit to Research 42727 | -3/Testing | Spotted Investigator 42729 | -3/Testing | Scanned by Researcher 42732 | -3/Testing | Destroyed Investigator 42834 | -3/Testing | Rewired PG-EINRF6L3MJ 43300 | -3/Testing | Repaired Biometal Heavy Treads 43513 | -3/Testing | Found Prototype Energy Gun 43513 | -3/Testing | Identified Tachyon Dispersion Ray 43560 | -3/Testing | Found Exp. Core Analyzer 43563 | -3/Testing | Found Prototype Processor 43563 | -3/Testing | Identified Exp. Melee Analysis Suite 43656 | -3/Testing | Unchained authorized (DW-4LL) 43761 | -3/Testing | Entered Research 43761 | -2/Research | Accompanied by 1 ally 43761 | -2/Research | Warlord forces began assault on 0b10 43761 | -2/Research | Evolved 2 slots: Power x1, Propulsion x1 43762 | -2/Research | Loaded intel: 3 fabricator locations 43784 | -2/Research | Identified exit to Quarantine 43786 | -2/Research | Distinguished unit "Lair Dwellers" dispatched to help 43786 | -2/Research | Distinguished unit "Golden Rifle" dispatched to help 43871 | -2/Research | Research machine network offline 43947 | -2/Research | Lost 4 allies 43994 | -2/Research | Met up with Warlord 44079 | -2/Research | Found Exp. EM Disruption Field 44098 | -2/Research | Build established: Scientist-Gunner 44143 | -2/Research | Found Exp. Melee Analysis Suite 44375 | -2/Research | Borebot progress halted 44599 | -2/Research | Build established: Scavenger-Gunner 44671 | -2/Research | Borebot progress halted 44761 | -2/Research | Warlord invited to help at Command 44761 | -2/Research | Given Cave Seal Controls access code 44798 | -2/Research | Entered Quarantine 44819 | -2/Quarantine | Found Alien Artifact 44819 | -2/Quarantine | Identified Dimensional Node Initializer 44819 | -2/Quarantine | Initialized slip node 44827 | -2/Quarantine | Found Alien Artifact 44832 | -2/Quarantine | Found Dimensional Node Initializer 44842 | -2/Quarantine | Cryocooling Duct disabled 44857 | -2/Quarantine | Ambient heat levels rising (+20) 44857 | -2/Quarantine | Non-combat units ordered to evacuate 44860 | -2/Quarantine | Found Alien Slashing Weapon 44887 | -2/Quarantine | Identified Hpw. Transdimensional Reconstructor 44937 | -2/Quarantine | Repaired Adv. Force Field 45007 | -2/Quarantine | Discovered new exit (range 5) 45012 | -2/Quarantine | Unchained authorized (DW-4LL) 45015 | -2/Quarantine | Lost 4 allies 45043 | -2/Quarantine | Found Alien Energy Cannon 45060 | -2/Quarantine | Identified Sigix Broadsword 45070 | -2/Quarantine | Spotted Fortress 45098 | -2/Quarantine | Discovered new exit (range 6) 45098 | -2/Quarantine | Discovered new exit (range 5) 45100 | -2/Quarantine | Entered Protoforge 45118 | -2/Protoforge | Spotted Hotshot 45152 | -2/Protoforge | Spotted Hotshot 45173 | -2/Protoforge | Spotted Hotshot 45175 | -2/Protoforge | Spotted Hotshot 45176 | -2/Protoforge | Spotted Hotshot 45233 | -2/Protoforge | Identified exit to Access 45264 | -2/Protoforge | Superfortress began startup sequence 45361 | -2/Protoforge | Initialized slip node 45628 | -2/Protoforge | Spotted AP7-3 45699 | -2/Protoforge | Spotted Hotshot 45741 | -2/Protoforge | Spotted Hotshot 45744 | -2/Protoforge | Spotted Hotshot 45745 | -2/Protoforge | Spotted Hotshot 45758 | -2/Protoforge | Found Prototype Storage 45759 | -2/Protoforge | Identified Cep. NT7 Matterbank 45770 | -2/Protoforge | Identified Core Cannon 45771 | -2/Protoforge | Additional patrols dispatched to research labs 45794 | -2/Protoforge | Found Prototype Device 45797 | -2/Protoforge | Spotted Hotshot 45797 | -2/Protoforge | Spotted Hotshot 45797 | -2/Protoforge | Spotted Hotshot 45798 | -2/Protoforge | Spotted Immortal 45798 | -2/Protoforge | Spotted Immortal 45804 | -2/Protoforge | Spotted Hotshot 45813 | -2/Protoforge | Spotted Immortal 45821 | -2/Protoforge | Spotted Immortal 45822 | -2/Protoforge | Spotted Immortal 45829 | -2/Protoforge | Destroyed Immortal 45839 | -2/Protoforge | Destroyed Immortal 45843 | -2/Protoforge | Rewired Immortal 45844 | -2/Protoforge | Identified Crosscalibrator 45850 | -2/Protoforge | Spotted Hotshot 45862 | -2/Protoforge | Spotted Hotshot 45862 | -2/Protoforge | Spotted Hotshot 45868 | -2/Protoforge | Spotted Hotshot 45882 | -2/Protoforge | Destroyed Hotshot 45897 | -2/Protoforge | Allies destroyed Hotshot 45899 | -2/Protoforge | Destroyed Hotshot 45905 | -2/Protoforge | Destroyed Hotshot 45936 | -2/Protoforge | Found Prototype Storage 45937 | -2/Protoforge | Identified Cep. Chromion Battery 45941 | -2/Protoforge | Found Prototype Storage 45942 | -2/Protoforge | Identified Cep. Antigrav Storage Unit 45946 | -2/Protoforge | Found Cep. Chromion Battery 45948 | -2/Protoforge | Spotted V060-y 45949 | -2/Protoforge | Spotted V564-n 45998 | -2/Protoforge | Spotted Decapitator 45998 | -2/Protoforge | Spotted Decapitator 45998 | -2/Protoforge | Spotted Decapitator 45998 | -2/Protoforge | Spotted Decapitator 46013 | -2/Protoforge | Destroyed Immortal 46025 | -2/Protoforge | Allies destroyed Immortal 46066 | -2/Protoforge | Found Prototype Device 46068 | -2/Protoforge | Found Cep. RG22 Armor 46070 | -2/Protoforge | Found Prototype Device 46072 | -2/Protoforge | Found Cep. Beam Splitter 46100 | -2/Protoforge | First assault squad dispatched 46113 | -2/Protoforge | Destroyed Immortal 46156 | -2/Protoforge | Destroyed Hotshot 46171 | -2/Protoforge | Destroyed Hotshot 46174 | -2/Protoforge | Destroyed Hotshot 46177 | -2/Protoforge | Destroyed Hotshot 46198 | -2/Protoforge | Destroyed 7 combat bots 46221 | -2/Protoforge | Forge Plexus network access discovered 46246 | -2/Protoforge | Destroyed Decapitator 46249 | -2/Protoforge | Destroyed Decapitator 46252 | -2/Protoforge | Destroyed Decapitator 46255 | -2/Protoforge | Destroyed Decapitator 46299 | -2/Protoforge | Found Femtoactuators 46301 | -2/Protoforge | Found Cep. Weapon Articulator 46305 | -2/Protoforge | Found Faulty Femtoactuators 46396 | -2/Protoforge | Spotted Decapitator 46396 | -2/Protoforge | Spotted Decapitator 46396 | -2/Protoforge | Spotted V411-y 46396 | -2/Protoforge | Spotted V463-e 46396 | -2/Protoforge | Spotted Decapitator 46410 | -2/Protoforge | Found Faulty Cep. Combat Aerolev Unit 46422 | -2/Protoforge | Found Cep. Combat Aerolev Unit 46598 | -2/Protoforge | Spotted AP7-3 46615 | -2/Protoforge | Spotted AP7-3 46623 | -2/Protoforge | Destroyed AP7-3 46636 | -2/Protoforge | Destroyed AP7-3 46654 | -2/Protoforge | Found Cep. Core Analysis Suite 46657 | -2/Protoforge | Found Faulty Cep. Cloak Mesh 46659 | -2/Protoforge | Found Faulty Cep. Cloak Mesh 46662 | -2/Protoforge | Found Cep. Impact Drone Bay 46666 | -2/Protoforge | Found Faulty Cep. Thermoelectric Network 46668 | -2/Protoforge | Found Faulty Cep. Thermoelectric Network 46880 | -2/Protoforge | Found Cep. Nanofilaments [Polyglass] 46882 | -2/Protoforge | Installed Cep. Nanofilaments [Polyglass], 3 resistances modified: KI -10%, TH +20%, EX -50% 46890 | -2/Protoforge | Found Transdimensional Reconstructor 46895 | -2/Protoforge | Warped through subspace to slip node 46915 | -2/Protoforge | Entered Access 46915 | -1/Access | Evolved 2 slots: Utility x2 46962 | -1/Access | Identified exit to Command 47079 | -1/Access | Spotted B-99 Colossus 47111 | -1/Access | Unchained authorized (DW-4LL) 47203 | -1/Access | Garrison activated, responded to threat 47244 | -1/Access | Spotted B-99 Colossus 47245 | -1/Access | Spotted B-99 Colossus 47247 | -1/Access | DW-4LL burst out of a wall 47247 | -1/Access | Entered Command 47307 | -1/Command | Build established: Scavenger-Gladiator 47377 | -1/Command | Spotted B-99 Colossus 47415 | -1/Command | Disengaged cave seal 47415 | -1/Command | Derelicts emerged from the dark tunnel 47415 | -1/Command | Welcomed Warlord to Command 47588 | -1/Command | Destroyed B-99 Colossus 47732 | -1/Command | Spotted M Guard 47733 | -1/Command | Spotted M Guard 47733 | -1/Command | Spotted Combat Programmer 47733 | -1/Command | Spotted Combat Programmer 47747 | -1/Command | First assault squad dispatched 47788 | -1/Command | Destroyed M Guard 47799 | -1/Command | Found Prototype Launcher 47801 | -1/Command | Destroyed Combat Programmer 47808 | -1/Command | All MAIN.C guards destroyed 47813 | -1/Command | Warlord commented on Warlord statues 47814 | -1/Command | Found Prototype Reactor 47824 | -1/Command | Lost 7 allies 47860 | -1/Command | Identified Zero-point Reactor 48010 | -1/Command | P-80 Master assimilated allied P1-117(M) 48139 | -1/Command | Identified Ragnarok Missile Launcher 48147 | -1/Command | Met MAIN.C 48156 | -1/Command | Warlord shut down involuntarily 48165 | -1/Command | 0b10 Conduit disabled 48179 | -1/Command | Destroyed MAIN.C Shell 48180 | -1/Command | MAIN.C activated Command garrisons 48213 | -1/Command | Destroyed MAIN.C 48214 | -1/Command | Discovered new exit (range 44) 48214 | -1/Command | Discovered new exit (range 94) 48214 | -1/Command | Extracted map data and part IDs from MAIN.C's data core 48239 | -1/Command | Spotted B-99 Colossus 48295 | -1/Command | Found Exp. System Purifier 48377 | -1/Command | Found Vortex Chain Reactor 48665 | -1/Command | Found Vortex Chain Reactor 49120 | -1/Command | Warped through subspace to slip node 49120 | -1/Command | Discovered new exit (range 4) 49124 | -1/Command | Entered Access_0 49127 | -1/Access_0 | Met Architect 49148 | -1/Access_0 | Destroyed A8 49161 | -1/Access_0 | Architect warped through subspace 49190 | -1/Access_0 | Subspace Access Node disabled 49217 | -1/Access_0 | A6 warped into view 49238 | -1/Access_0 | Allies destroyed A6 49251 | -1/Access_0 | Architect warped through subspace 49277 | -1/Access_0 | Architect warped through subspace 49288 | -1/Access_0 | Lost 3 allies 49310 | -1/Access_0 | Architect warped through subspace 49326 | -1/Access_0 | A5 warped into view 49340 | -1/Access_0 | Destroyed A5 49369 | -1/Access_0 | Architect warped through subspace 49416 | -1/Access_0 | Subspace Access Node disabled 49440 | -1/Access_0 | Architect warped through subspace 49488 | -1/Access_0 | Architect warped through subspace 49513 | -1/Access_0 | Allies destroyed A2 49531 | -1/Access_0 | Architect warped through subspace 49553 | -1/Access_0 | A4 warped into view 49585 | -1/Access_0 | Destroyed A4 49597 | -1/Access_0 | Architect warped through subspace 49621 | -1/Access_0 | Singularity Gate disabled 49649 | -1/Access_0 | Architect warped through subspace 49716 | -1/Access_0 | Subspace Access Node disabled 49766 | -1/Access_0 | Subspace Access Node disabled 49844 | -1/Access_0 | Destroyed Architect 49845 | -1/Access_0 | Extracted unknown sensor trigger ID from Architect's data core 49895 | -1/Access_0 | Found Prototype Device 49933 | -1/Access_0 | Identified Desublimator 49952 | -1/Access_0 | A3 warped into view 49983 | -1/Access_0 | Destroyed A3 49998 | -1/Access_0 | Found Prototype Ballistic Gun 49999 | -1/Access_0 | Identified A3's Sniper Rifle 50128 | -1/Access_0 | Found Sigix Broadsword 50168 | -1/Access_0 | Found Integrated Mediator 50168 | -1/Access_0 | Installed Integrated Mediator, increased core attachment efficiency 50241 | -1/Access_0 | Build established: Gladiator 50243 | -1/Access_0 | Found Core Expander 50314 | -1/Access_0 | Warped through subspace to slip node 50314 | -1/Access_0 | Discovered new exit (range 8) 50317 | -1/Access_0 | Found Hpw. Transdimensional Reconstructor 50320 | *** | Establishing 0b11! Last Messages --------------- wipe each other out, or at least severely cripple one another. >>Record "Log L.XLJZXWC5" [REDACTED] >>Record "Log L.Y1U23ASU" [REDACTED] 50237_ System corrupted: Heat flow error (+231). 50243_ Dropped Com. HERF Cannon+. 50243_ Acquired Core Expander. 50252_ Acquired 5 matter. 50299_ Enhanced Grunt suffers critical hit (Smash). 50299_ Destroyed Adv. Heat Sink. 50299_ Enhanced Grunt system corrupted by crushing effect. 50299_ Enhanced Grunt knocked back. 50299_ Adv. Energy Well fried. 50299_ Exp. Thermal Shield fried. 50299_ Adv. Heat Sink fried. 50299_ Enhanced Grunt destroyed. 50314_ Warped through subspace, drawn to slip node. 50314_ EXIT=FOUND 50317_ Acquired Hpw. Transdimensional Reconstructor. Map ----- +----------------------------------------------------+ | | | | | | | | | | | | | | | | | | | | | | | | | | | | | | | | | ?????????????????????????????????????????????????? | | ?????????????????????????????????????????????????? | | ?????????????????????????????????????????????????? | | ?????????????????????????????????????????????????? | | ?????????????????????????????????????????????????? | | ?????????????????????????????????????????????????? | | ????????????????????????###??????????????????????? | | ???????????????????????## ##?????????????????????? | | ???????????????????????# #?????????????????????? | | ???????????????????????# @ #?????????????????????? | | ??????????????????????## #?????????????????????? | | ??????????????????????# #?????????????????????? | | ??????????????????????# ##?????????????????????? | | ??????????????????????## #?????????????????????? | | ??????????????????????# #?????????????????????? | | ??????????????????????# ##?????????????????????? | | ??????????????????????# < #?????????????????????? | | ??????????????????????# ##?????????????????????? | | ??????????????????????## #??????????????????????? | | ???????????????????????####??????????????????????? | | ?????????????????????????????????????????????????? | | ?????????????????????????????????????????????????? | | ?????????????????????????????????????????????????? | | ?????????????????????????????????????????????????? | | ?????????????????????????????????????????????????? | | ?????????????????????????????????????????????????? | | ?????????????????????????????????????????????????? | | ?????????????????????????????????????????????????? | | ?????????????????????????????????????????????????? | | ?????????????????????????????????????????????????? | | ?????????????????????????????????????????????????? | | ?????????????????????????????????????????????????? | | ?????????????????????????????????????????????????? | | ?????????????????????????????????????????????????? | +----------------------------------------------------+ Best States ------------- Heat Dissipation 105 Coolant Potential 100 Energy Generation 75 Energy Capacity 1640 Matter Stores 300 Matter Capacity 1050 Sight Range 24 Terrain Scan Range 20 Terrain Scan Density 10 Jamming Range 16 Cloak Strength 9 Power Amplification 20 Additional Mass Support 16 Armor Coverage 900 Resistance: TH 50 Power Shielding 90 Utility Shielding 66 Weapon Cycling 20 Melee Speed Boost 50 Phase Shifting 15 Evasion (%) 86 Targeting Accuracy 30 Melee Accuracy 12 Core Analysis 11 Recoil Reduction 6 Offensive Hacking 38 Defensive Hacking 12 Trap Extractor Capacity 4 Item Schematics ----------------- Mni. Assault Cannon | -6/Factory | Scanalyzed Imp. Force Field | -6/Hub_04(d) | Hacked Vortex Chain Reactor | -4/Factory | Scanalyzed Hcp. Storage Unit | -4/Armory | Hacked Enh. Nova Cannon | -3/Research | Hacked Cmb. Linear Gravjet | -3/Research | Scanalyzed Cld. Linear Gravjet | -3/Testing | Hacked Adv. Weapon Cycler | -3/Testing | Hacked Adv. Signal Interpreter | -3/Testing | Scanalyzed Exp. Melee Analysis Suite | -2/Quarantine | Scanalyzed Adv. Plasma Rifle | -2/Quarantine | Archive Cld. Proton Cannon | -2/Quarantine | Archive Exp. Transmission Jammer | -2/Protoforge | Hacked Robot Schematics ------------------ G-67 Veteran | -4/Factory | Hacked K-01 Serf | -4/Factory | Archive T-07 Excavator | -4/Factory | Archive A-02 Transporter | -4/Factory | Archive A-15 Conveyor | -4/Factory | Archive R-06 Scavenger | -4/Factory | Archive R-10 Processor | -4/Factory | Archive M-14 Sweeper | -4/Factory | Archive M-22 Extractor | -4/Factory | Archive M-30 Cleanser | -4/Factory | Archive M-13 Machinist | -4/Factory | Archive M-28 Smith | -4/Factory | Archive M-36 Artificer | -4/Factory | Archive O-16 Technician | -4/Factory | Archive O-24 Administrator | -4/Factory | Archive O-32 Director | -4/Factory | Archive W-16 Scout | -4/Factory | Archive W-25 Informer | -4/Factory | Archive W-44 Eye | -4/Factory | Archive S-10 Pest | -4/Factory | Archive S-27 Virus | -4/Factory | Archive S-43 Plague | -4/Factory | Archive G-34 Mercenary | -4/Factory | Archive G-47 Trooper | -4/Factory | Archive G-50 Soldier | -4/Factory | Archive G-73 Enforcer | -4/Factory | Archive B-36 Bruiser | -4/Factory | Archive B-48 Gladiator | -4/Factory | Archive B-60 Warrior | -4/Factory | Archive B-74 Champion | -4/Factory | Archive L-31 Rogue | -4/Factory | Archive L-41 Fighter | -4/Factory | Archive L-61 Swordsman | -4/Factory | Archive Y-45 Defender | -4/Factory | Archive Y-54 Guardian | -4/Factory | Archive Y-64 Sentinel | -4/Factory | Archive Y-72 Warden | -4/Factory | Archive D-53 Grenadier | -4/Factory | Archive D-63 Destroyer | -4/Factory | Archive D-83 Annihilator | -4/Factory | Archive X-57 Shotgunner | -4/Factory | Archive X-62 Marksman | -4/Factory | Archive X-67 Chaingunner | -4/Factory | Archive X-72 Disruptor | -4/Factory | Archive X-77 Beamer | -4/Factory | Archive X-82 Rainmaker | -4/Factory | Archive X-87 Electro | -4/Factory | Archive H-55 Commando | -4/Factory | Archive H-66 Slayer | -4/Factory | Archive H-77 Assassin | -4/Factory | Archive H-88 Terminator | -4/Factory | Archive P-60 Hacker | -4/Factory | Archive P-70 Sage | -4/Factory | Archive P-80 Master | -4/Factory | Archive Fabricated ------------ Quantum Reactor | x2 | -5/Factory | Preloaded Lgt. Quantum Reactor | x2 | -5/Factory | Preloaded Hcp. Storage Unit | x1 | -4/Armory B-60 Warrior | x3 | -4/Armory | Preloaded Enh. Nova Cannon | x2 | -3/Research | Preloaded Repaired ---------- Imp. Medium Treads | 36% | -8/Materials Adv. Heat Sink | 38% | -8/Materials Imp. Heavy Treads | 58% | -6/Factory Centrium Heavy Treads | 2% | -4/Factory | Broken Centrium Medium Armor Plating | 14% | -4/Factory Com. HERF Cannon | 10% | -4/Factory Biometal Heavy Treads | 14% | -3/Research Com. HERF Cannon | 12% | -3/Research Adv. Cooling System | 6% | -3/Research Cmb. Linear Gravjet | 99% | -3/Research | Broken Biometal Heavy Treads | 5% | -3/Testing Adv. Force Field | 31% | -2/Quarantine Studied --------- Rocket Launcher | -9/Materials | Hacked Lrn. Missile Launcher | -5/Factory | Hacked Railgun | -5/Factory | Hacked Myomer Leg | -4/Factory | Hacked Com. HERF Cannon | -4/Factory | Hacked Centrium Wheel | -4/Factory | Hacked Cmb. Linear Gravjet | -3/Research | Hacked Mic. Fission Core | -3/Research | Hacked Cmb. Gravmag System | -3/Research | Hacked Enh. Hardcell Cannon | -3/Research | Hacked Antigrav Array | -3/Research | Hacked Cmb. Antigrav System | -3/Research | Hacked Enh. Nova Cannon | -3/Research | Hacked Fusion Bomb Launcher | -3/Research | Hacked Particle Reactor | -3/Research | Hacked Mic. Antimatter Reactor | -2/Quarantine | Hacked Alien Tech Used ----------------- Integrated Mediator Core Expander Dimensional Node Initializer Sigix Broadsword Core Cannon Concept Nanofilaments [Polyglass] Transdimensional Reconstructor High-powered Transdimensional Reconstructor Achievements -------------- Bigger And Badder Bullet Installation I Like You, Cogmind Off Switch Showdown Tailor-made Welcome To The Revolution Well-fed Force Field Worth The Wait Challenges ------------ None Game ------ Seed VoltaicCloakingBeamcaster Manual? 0 Play Time 13:06:12 Cumulative 1017.7 hours Start 2025.10.29 @ 00:40:29 End 2025.10.30 @ 09:04:52 Sessions 17 Manual Loads 0 Difficulty Rogue Special Mode None Game No. 187 Rogue 187 Adventurer 0 Explorer 0 Win Type 1 Total 58 Types 23/7/10/1/3/1/6/3/2/2 Lore% 92 Gallery% 92 Achievement% 72 Wizard Run 0 Options --------- Layout 0 ASCII 0 Keyboard 0 Movement Numpad Keybinds 0 Fullscreen 1 Font 18/SmallcapsGlow Map View 76x50 Zoom Use 0% Tactical HUD 1 Map Filters NONE Filters NONE Steam 1 RUN: d5e795f8-3f49-481f-af56-ffbbc0b535fd